{"text_format":"1","workbook":"xlsx","n_sheets":9,"sheets":["Startseite","Dashboard","Digitalisierung","Lieferantenmanagement","Risikomanagement","Regionale Lieferketten","Globale Lieferketten","Innovationsmanagement","Impressum"],"not_rendered":{"charts":1,"images":25,"macros":1,"external_links":0,"defined_names":2,"comments":0,"pivot_tables":0},"unopened":[],"bounds":{"document_bytes":16777216,"sheet_cells":100000,"rows_first":2000,"rows_last":500,"rows_between":2000,"halvings":0,"cell_chars":16384,"cell_head_chars":4096},"cells_cut":0,"cells_raw":0,"read":"whole","date_system":"1900"}

{"sheet":"Startseite","index":0,"n_rows":29,"n_cols":10,"rows_kept":29,"cut":false,"hidden":false,"merged":[[18,2,18,7],[9,2,16,7],[10,9,10,15],[12,9,12,15],[26,9,29,15]]}
[]
[null,null,null,"Supply Chain Resilience Quick Check Tool"]
[]
[]
[null,null,"Entwickelt von"]
[]
[]
[]
[]
[null,null,"Willkommen zum Supply Chain Resilience Quick Check Tool\nMit dem Tool können Sie die Resilienz Ihrer Liefer- und Wertschöpfungsketten gezielt analysieren und systematisch stärken. Über eine initiale Filterung wählen Sie die für Ihr Unternehmen relevanten Thematiken in den Bereichen Digitalisierung, Lieferantenmanagement, Risikomanagement, regionale und globale Lieferketten sowie Innovationsmanagement aus. Sie beantworten daraufhin passgenaue Fragen, wobei nicht relevante Themen automatisch ausgeblendet werden. Am Ende erhalten Sie für die ausgewählten Bereiche einen Resilienz-Indikator und konkrete Handlungsempfehlungen. Der Quick Check kann regelmäßig durchgeführt werden, um Fortschritte sichtbar zu machen und die eigene Resilienz Schritt für Schritt weiterzuentwickeln."]
[null,null,null,null,null,null,null,null,null,"Supply Chain Resilience Quick Checks"]
[]
[null,null,null,null,null,null,null,null,null,"entwickelt im Rahmen des Forschungsprojektes"]
[]
[]
[]
[]
[null,null,"Für den vollständigen Funktionsumfang müssen Macros aktiviert werden:"]
[null,null,"https://support.microsoft.com/de-de/office/aktivieren-oder-deaktivieren-von-makros-in-microsoft-365-dateien-12b036fd-d140-4e74-b45e-16fed1a7e5c6"]
[]
[]
[]
[]
[null,null,"Kontakt:"]
[null,null,"Janis Purk, FH Münster"]
[null,null,"janis.purk@fh-muenster.de"]
[null,null,null,null,null,null,null,null,null,"Das Vorhaben „WiReSt“ wird innerhalb des Programms Region gestalten des Bundesministeriums für Wohnen, Stadtentwicklung und Bauwesen in Zusammenarbeit mit dem Bundesinstitut für Bau-, Stadt- und Raumforschung gefördert."]
[null,null,"Mechthild Leiwering Hillers, WESt mbH"]
[null,null,"mechthild.leiwering-hillers@westmbh.de"]

{"sheet":"Dashboard","index":1,"n_rows":38,"n_cols":19,"rows_kept":38,"cut":false,"hidden":false,"merged":[[4,2,37,6],[6,9,6,11],[7,9,7,11],[30,8,30,9],[37,8,37,9],[8,9,8,11],[9,9,9,11],[10,9,10,11],[11,9,11,11],[12,9,12,11]]}
[]
[null,null,null,"Supply Chain Resilience Quick Check Tool"]
[]
[]
[null,null,"So funktioniert's:\n\n\n1) Unternehmenscharakteristiken angeben\nDurch die Spezifizierung der Rahmenbedingungen Ihres Unternehmens werden nur die Quick Checks erfasst, die für Sie bzw. Ihr Unternehmen relevant sind.\n\n2) Quick Checks ausfüllen\nÜber das Navigationsmenü erreichen Sie die Quickchecks, unterteilt in die Kategorien \"Digitalisierung\", \"Lieferantenmanagement\", \"Risikomanagement\", \"Regionale Lieferketten\", \"Globale Lieferketten\" und \"Innovationsmanagement\".\nGehen Sie alle Kategorien gewissenhaft durch und bewerten Sie die einzelnen Aspekte durch Klicken auf die vorgesehenen Schaltflächen.\n\n3) Ergebnis ansehen\nIm nebenstehenden Dashboard erhalten Sie eine automatisch generierte Auswertung  zur Aufstellung Ihres Unternehmens in Bezug auf Supply Chain Resilienz. Insgesamt werden für jede Kategorie anhand Ihrer Antworten Scores berechnet, welche auf Stärken sowie Schwachstellen hindeuten können. Der maximal erreichbare Score je Kategorie beläuft sich auf 5. Dies bedeutet, dass Ihr Unternehmen in diesem Bereich tendenziell gut aufgestellt ist. Scores unter 4 bedürfen genauere Untersuchung und ggf. Optimierung.\n\n4) Schwachstellen identifizieren und Handlungsoptionen sowie Strategien erfassen \nHandlungsoptionen sowie strategische Ansätze können dabei als Startpunkt aus dem verlinkten Dokument entnommen werden.",null,null,null,null,null,"Unternehmenscharakteristiken"]
[]
[null,null,null,null,null,null,null,null,"Filterung","Ausprägung (bitte per Dropdown auswählen)"]
[null,null,null,null,null,null,null,null,"Tiefe der Produktfertigung","viele Strukturstufen",null,null,null,null,"Tiefe der Produktstruktur","viele Strukturstufen","einige Strukturstufen","1-stufige Produktion","Handel, (inkl. externe Produktion)"]
[null,null,null,null,null,null,null,null,"Reichweite der Lieferketten","global",null,null,null,null,"global","global","europaweit","national","regional"]
[null,null,null,null,null,null,null,null,"Größe des Unternehmens","bis 249 Mitarbeiter",null,null,null,null,"Frequenz der Kundenaufträge","ab 1000 Mitarbeiter","bis 999 Mitarbeiter","bis 249 Mitarbeiter","bis 49 Mitarbeiter"]
[null,null,null,null,null,null,null,null,"Auftragsauslösung","Nachfrage / (Kundenproduktions- bzw. -beschaffungsauftrag)",null,null,null,null,"Produktvielfaltskonzept","Nachfrage / (Kundenproduktions- bzw. -beschaffungsauftrag)","Prognose / (Vorhersageauftrag)","Verbrauch / (Lagernachfüllauftrag)"]
[null,null,null,null,null,null,null,null,"Outsourcings von Unterstützungsfunktionen","Konzentration auf Kerngeschäft",null,null,null,null,"Kosten pro Einheit","Kein Outsourcing","Teilweises Outsourcing","Konzentration auf Kerngeschäft"]
[null,null,null,null,null,null,null,null,"Transportierbarkeit der Rohstoffe","digital übermittelbar",null,null,null,null,"Transportierbarkeit","transportierbar","tragbar","Nicht transportierbar","digital übermittelbar"]
[]
[]
[]
[null,null,null,null,null,null,null,null,"Ergebnis"]
[]
[]
[]
[]
[]
[]
[]
[]
[]
[]
[]
[]
[]
[null,null,null,null,null,null,null,null,"Bereich",null,"Punkte","Links zum Abschnitt in den Projektergebnissen"]
[null,null,null,null,null,null,null,null,"A","Digitalisierung",{"$f":"Digitalisierung!D70","v":0},"WiReSt/Digitalisierung"]
[null,null,null,null,null,null,null,null,"B","Lieferantenmanagement",{"$f":"Lieferantenmanagement!D32","v":0},"WiReSt/Lieferantenmanagment"]
[null,null,null,null,null,null,null,null,"C","Risikomanagement",{"$f":"Risikomanagement!D41","v":0},"WiReSt/Risikomanagement"]
[null,null,null,null,null,null,null,null,"D","Regionale Lieferketten",{"$f":"'Regionale Lieferketten'!D22","v":0},"WiReSt/Regionale_Lieferketten"]
[null,null,null,null,null,null,null,null,"E","Globale Lieferketten",{"$f":"'Globale Lieferketten'!D24","v":0},"WiReSt/Globale_Lieferketten"]
[null,null,null,null,null,null,null,null,"F","Innovationsmanagement",{"$f":"Innovationsmanagement!D30","v":0},"WiReSt/Innovationsmanagement"]
[null,null,null,null,null,null,null,null,"Reifegrad gesamt",null,{"$f":"SUM(K32:K37)/6","v":0}]

{"sheet":"Digitalisierung","index":2,"n_rows":70,"n_cols":19,"rows_kept":70,"cut":false,"hidden":false,"merged":[[1,13,1,18],[1,3,1,8]]}
[null,null,"Gewichtung","Stimme überhaupt nicht zu ","Stimme eher nicht zu","Neutral","Stimme eher zu","Stimme voll zu","Punkte","Mögliche Handlungsoptionen",null,null,"Gewichtung","Stimme überhaupt nicht zu ","Stimme eher nicht zu","Neutral","Stimme eher zu","Stimme voll zu","Punkte"]
["A1","Geschäftsbereiche"]
["A1.1","Die Produktion unseres Unternehmens ist IT-gestützt",{"$f":"1/$H$9","v":0.16666666666666666},null,null,false,null,null,{"$f":"(IF(D3=TRUE,1,0)+IF(E3=TRUE,2,0)+IF(F3=TRUE,3,0)+IF(G3=TRUE,4,0)+IF(H3=TRUE,5,0))*C3","v":0},{"$f":"IF(OR(D3=TRUE,E3=TRUE),L3,\"\")","v":""},null,"Automatisierung: Implementiere fortschrittliche Automatisierungstechnologien, um die Effizienz und Genauigkeit der Produktionsprozesse zu erhöhen.\nDatenanalyse: Nutze Datenanalyse-Tools, um Produktionsdaten in Echtzeit zu überwachen und Optimierungspotenziale zu identifizieren.\nWartungsmanagement: Setze prädiktive Wartungssysteme ein, um Ausfallzeiten zu minimieren und die Lebensdauer der Maschinen zu verlängern.",{"$f":"1/$H$9","v":0.16666666666666666},null,null,false,null,null,{"$f":"(IF(N3=TRUE,1,0)+IF(O3=TRUE,2,0)+IF(P3=TRUE,3,0)+IF(Q3=TRUE,4,0)+IF(R3=TRUE,5,0))*M3","v":0}]
["A1.2","Die Produktionsplanung unseres Unternehmens ist IT-gestützt",{"$f":"1/$H$9","v":0.16666666666666666},null,null,false,null,null,{"$f":"(IF(D4=TRUE,1,0)+IF(E4=TRUE,2,0)+IF(F4=TRUE,3,0)+IF(G4=TRUE,4,0)+IF(H4=TRUE,5,0))*C4","v":0},{"$f":"IF(OR(D4=TRUE,E4=TRUE),L4,\"\")","v":""},null,"Planungstools: Verwende fortschrittliche Planungstools, um Produktionspläne zu erstellen, die Ressourcen optimal nutzen und Engpässe vermeiden.\nSimulation: Nutze Simulationssoftware, um verschiedene Produktionsszenarien zu testen und die besten Strategien zu identifizieren.\nIntegration: Stelle sicher, dass die Planungssysteme nahtlos mit anderen IT-Systemen wie ERP und SCM integriert sind.",{"$f":"1/$H$9","v":0.16666666666666666},null,null,false,null,null,{"$f":"(IF(N4=TRUE,1,0)+IF(O4=TRUE,2,0)+IF(P4=TRUE,3,0)+IF(Q4=TRUE,4,0)+IF(R4=TRUE,5,0))*M4","v":0}]
["A1.3","Die Entwicklung von Produkten und Dienstleistungen unseres Unternehmens ist IT-gestützt",0.16666666666666666,null,null,false,null,null,0,"",null,"Kollaborationsplattformen: Implementiere digitale Plattformen, die die Zusammenarbeit zwischen verschiedenen Abteilungen und externen Partnern fördern.\nPrototyping: Nutze digitale Prototyping-Tools, um neue Produkte schneller und kostengünstiger zu entwickeln und zu testen.\nKundenfeedback: Integriere Systeme zur Erfassung und Analyse von Kundenfeedback, um die Produktentwicklung kontinuierlich zu verbessern.",0.16666666666666666,null,null,false,null,null,0]
["A1.4","Die Beschaffung unseres Unternehmens ist IT-gestützt",0.16666666666666666,null,null,false,null,null,0,"",null,"Lieferantenmanagement: Implementiere digitale Systeme zur Verwaltung und Bewertung von Lieferanten, um die Qualität und Zuverlässigkeit der Lieferkette zu verbessern.\nE-Procurement: Nutze E-Procurement-Plattformen, um den Beschaffungsprozess zu automatisieren und zu optimieren.\nBestandsmanagement: Setze IT-gestützte Bestandsmanagementsysteme ein, um Lagerbestände effizient zu verwalten und Engpässe zu vermeiden.",0.16666666666666666,null,null,false,null,null,0]
["A1.5","Das Marketing, der Vertrieb und die Kundenbeziehungen unseres Unternehmens sind IT-gestützt",0.16666666666666666,null,null,false,null,null,0,"",null,"CRM-Systeme: Implementiere Customer Relationship Management (CRM)-Systeme, um Kundeninteraktionen zu verfolgen und zu analysieren.\nMarketing-Automatisierung: Nutze Marketing-Automatisierungstools, um Kampagnen effizienter zu gestalten und die Zielgruppenansprache zu verbessern.\nDatenanalyse: Verwende Datenanalyse-Tools, um Markttrends zu identifizieren und personalisierte Marketingstrategien zu entwickeln.",0.16666666666666666,null,null,false,null,null,0]
["A1.6","Die Querschnittsfunktionen unseres Unternehmens sind IT-gestützt",0.16666666666666666,null,null,false,null,null,0,"",null,"HR-Management: Implementiere digitale HR-Management-Systeme, um Personalprozesse zu automatisieren und zu optimieren.\nFinanzmanagement: Nutze IT-gestützte Finanzmanagementsysteme, um Finanzprozesse zu verbessern und die Transparenz zu erhöhen.\nKommunikation: Setze digitale Kommunikationsplattformen ein, um die interne und externe Kommunikation zu verbessern und die Zusammenarbeit zu fördern.",0.16666666666666666,null,null,false,null,null,0]
[null,null,null,null,null,null,null,6,{"$f":"SUM(I3:I8)","v":0},null,null,null,null,null,null,null,null,6,{"$f":"SUM(S3:S8)","v":0}]
["A2","Unterstützung von Digitalisierungsvorhaben",null,null,null,null,null,null,null,{"$f":"IF(I10<>0,L10,\"\")","v":""}]
["A2.1","Es existiert ein gesondert abgestimmtes Budget für Digitalisierungsvorhaben ",{"$f":"1/$H$15","v":0.25},null,null,false,null,null,{"$f":"(IF(D11=TRUE,1,0)+IF(E11=TRUE,2,0)+IF(F11=TRUE,3,0)+IF(G11=TRUE,4,0)+IF(H11=TRUE,5,0))*C11","v":0},{"$f":"IF(OR(D11=TRUE,E11=TRUE),L11,\"\")","v":""},null,"Budgetüberwachung: Implementiere ein System zur kontinuierlichen Überwachung und Anpassung des Budgets, um sicherzustellen, dass die Mittel effizient genutzt werden.\nPriorisierung: Entwickle klare Kriterien zur Priorisierung von Projekten, um sicherzustellen, dass die wichtigsten und wertvollsten Vorhaben zuerst finanziert werden.\nTransparenz: Stelle sicher, dass die Budgetverteilung transparent ist und regelmäßig überprüft wird, um Vertrauen und Verantwortlichkeit zu fördern.",{"$f":"1/$H$15","v":0.25},null,null,false,null,null,{"$f":"(IF(N11=TRUE,1,0)+IF(O11=TRUE,2,0)+IF(P11=TRUE,3,0)+IF(Q11=TRUE,4,0)+IF(R11=TRUE,5,0))*M11","v":0}]
["A2.2","Digitalisierungsvorhaben werden unternehmensweit (lokal) abgestimmt ",{"$f":"1/$H$15","v":0.25},null,null,false,null,null,0,{"$f":"IF(OR(D12=TRUE,E12=TRUE),L12,\"\")","v":""},null,"Koordination: Etabliere ein zentrales Koordinationsteam, das die verschiedenen lokalen Initiativen überwacht und sicherstellt, dass sie aufeinander abgestimmt sind.\nBest Practices: Teile Best Practices und Lernerfahrungen zwischen den verschiedenen Abteilungen, um Synergien zu nutzen und Doppelarbeit zu vermeiden.\nKommunikation: Fördere eine offene Kommunikation zwischen den Abteilungen, um sicherzustellen, dass alle Beteiligten über den Fortschritt und die Ziele der Digitalisierungsvorhaben informiert sind.",{"$f":"1/$H$15","v":0.25},null,null,false,null,null,0]
["A2.3","Digitalisierungsvorhaben werden weltweit (global) abgestimmt",0.25,null,null,false,null,null,0,"",null,"Globale Strategie: Entwickle eine globale Digitalisierungsstrategie, die lokale Besonderheiten berücksichtigt, aber dennoch einheitliche Ziele und Standards setzt.\nKulturelle Sensibilität: Achte darauf, kulturelle Unterschiede zu berücksichtigen und lokale Teams in die Entscheidungsprozesse einzubeziehen.\nTechnologieplattformen: Nutze globale Technologieplattformen, die eine einheitliche Implementierung und Integration ermöglichen.",0.25,null,null,false,null,null,0]
["A2.4","Rollen und Verantwortungen zur Steuerung digitaler Vorhaben sind klar definiert",0.25,null,null,false,null,null,0,"",null,"Rollenbeschreibung: Erstelle detaillierte Rollenbeschreibungen, die die Verantwortlichkeiten und Erwartungen klar definieren.\nSchulung: Biete Schulungen und Weiterbildungen an, um sicherzustellen, dass alle Beteiligten die notwendigen Fähigkeiten und Kenntnisse besitzen.\nGovernance-Struktur: Implementiere eine klare Governance-Struktur, die die Entscheidungsfindung und Verantwortlichkeit unterstützt.",0.25,null,null,false,null,null,0]
[null,null,null,null,null,null,null,4,{"$f":"SUM(I11:I14)","v":0},null,null,null,null,null,null,null,null,4,{"$f":"SUM(S11:S14)","v":0}]
["A3","Führungsstil und Führungsstrukturen",null,null,null,null,null,null,null,""]
["A3.1","Führungskräfte des Geschäftsbereichs verfügen über umfangreiches technologisches Wissen, um eine digitale Transformationsstrategie entwickeln zu können",{"$f":"1/$H$19","v":0.5},null,null,false,null,null,{"$f":"(IF(D17=TRUE,1,0)+IF(E17=TRUE,2,0)+IF(F17=TRUE,3,0)+IF(G17=TRUE,4,0)+IF(H17=TRUE,5,0))*C17","v":0},{"$f":"IF(OR(D17=TRUE,E17=TRUE),L17,\"\")","v":""},null,"Weiterbildung: Biete regelmäßige Schulungen und Workshops an, um das technologische Wissen der Führungskräfte kontinuierlich zu erweitern.\nTechnologie-Updates: Halte die Führungskräfte über die neuesten technologischen Entwicklungen und Trends auf dem Laufenden.\nMentoring: Implementiere ein Mentoring-Programm, bei dem technologische Experten die Führungskräfte unterstützen und beraten.",{"$f":"1/$H$19","v":0.5},null,null,false,null,null,{"$f":"(IF(N17=TRUE,1,0)+IF(O17=TRUE,2,0)+IF(P17=TRUE,3,0)+IF(Q17=TRUE,4,0)+IF(R17=TRUE,5,0))*M17","v":0}]
["A3.2","IT-Führungskräfte verfügen über das nötige geschäftsspezifische Wissen, um die digitale Transformationsstrategie erfolgreich unterstützen zu können",{"$f":"1/$H$19","v":0.5},null,null,false,null,null,0,"",null,"Geschäftsverständnis: Fördere ein tiefes Verständnis der Geschäftsprozesse und -ziele durch gezielte Schulungen und Einblicke in die verschiedenen Geschäftsbereiche.\nCross-Functional Teams: Ermutige die Zusammenarbeit in funktionsübergreifenden Teams, um den Austausch von Wissen und Perspektiven zu fördern.\nStrategische Einbindung: Binde IT-Führungskräfte frühzeitig in die strategische Planung ein, um sicherzustellen, dass technologische und geschäftliche Ziele aufeinander abgestimmt sind.",{"$f":"1/$H$19","v":0.5},null,null,false,null,null,0]
[null,null,null,null,null,null,null,2,{"$f":"SUM(I17:I18)/2","v":0},null,null,null,null,null,null,null,null,2,{"$f":"SUM(S17:S18)/2","v":0}]
["A4","Mitarbeiterqualifikationen der Unternehmen",null,null,null,null,null,null,null,""]
["A4.1","Unsere Mitarbeiter sind gut in der Analyse großer Datenmengen geschult.",{"$f":"1/$H$34","v":7.6923076923076927E-2},null,null,false,null,null,{"$f":"(IF(D21=TRUE,1,0)+IF(E21=TRUE,2,0)+IF(F21=TRUE,3,0)+IF(G21=TRUE,4,0)+IF(H21=TRUE,5,0))*C21","v":0},{"$f":"IF(OR(D21=TRUE,E21=TRUE),L21,\"\")","v":""},null,"Werkzeuge und Technologien: Stelle sicher, dass die Mitarbeiter Zugang zu den neuesten Datenanalyse-Tools und -Technologien haben.\nDatenqualität: Implementiere Prozesse zur Sicherstellung der Datenqualität, um genaue und verlässliche Analysen zu gewährleisten.\nWeiterbildung: Biete kontinuierliche Schulungen an, um die Fähigkeiten der Mitarbeiter auf dem neuesten Stand zu halten.",{"$f":"1/$H$34","v":7.6923076923076927E-2},null,null,false,null,null,{"$f":"(IF(N21=TRUE,1,0)+IF(O21=TRUE,2,0)+IF(P21=TRUE,3,0)+IF(Q21=TRUE,4,0)+IF(R21=TRUE,5,0))*M21","v":0}]
["A4.2","Unsere Mitarbeiter sind erfahren im Management von Geschäftsveränderungen.",{"$f":"1/$H$34","v":7.6923076923076927E-2},null,null,false,null,null,0,"",null,"Change-Management-Strategien: Entwickle und implementiere klare Change-Management-Strategien, um den Übergang zu neuen Prozessen und Technologien zu erleichtern.\nKommunikation: Fördere eine offene und transparente Kommunikation, um die Akzeptanz und das Engagement der Mitarbeiter zu erhöhen.\nUnterstützungssysteme: Biete Unterstützungssysteme wie Coaching und Mentoring an, um den Mitarbeitern bei der Anpassung an Veränderungen zu helfen.",{"$f":"1/$H$34","v":7.6923076923076927E-2},null,null,false,null,null,0]
["A4.3","Unsere Mitarbeiter sind kompetent im Umgang mit Cloud-Computing-Technologien.",7.6923076923076927E-2,null,null,false,null,null,0,"",null,"Sicherheitsmaßnahmen: Implementiere robuste Sicherheitsmaßnahmen, um die Daten in der Cloud zu schützen.\nKostenmanagement: Entwickle Strategien zur Kostenkontrolle und -optimierung bei der Nutzung von Cloud-Diensten.\nIntegration: Stelle sicher, dass Cloud-Lösungen nahtlos in bestehende IT-Infrastrukturen integriert werden.",7.6923076923076927E-2,null,null,false,null,null,0]
["A4.4","Unsere Mitarbeiter arbeiten effektiv in kollaborativen Umgebungen.",7.6923076923076927E-2,null,null,false,null,null,0,"",null,"Kollaborationstools: Nutze moderne Kollaborationstools, um die Zusammenarbeit zu erleichtern und zu verbessern.\nTeam-Building: Fördere Team-Building-Aktivitäten, um das Vertrauen und die Zusammenarbeit innerhalb der Teams zu stärken.\nKommunikationskultur: Entwickle eine Kultur der offenen Kommunikation und des Wissensaustauschs.",7.6923076923076927E-2,null,null,false,null,null,0]
["A4.5","Unsere Mitarbeiter sind gut in Cybersicherheit geschult.",7.6923076923076927E-2,null,null,false,null,null,0,"",null,"Sicherheitsrichtlinien: Implementiere und aktualisiere regelmäßig Sicherheitsrichtlinien und -protokolle.\nSchulungen: Biete regelmäßige Schulungen und Sensibilisierungskampagnen an, um das Bewusstsein für Cybersicherheitsrisiken zu erhöhen.\nÜberwachung: Setze Überwachungssysteme ein, um potenzielle Bedrohungen frühzeitig zu erkennen und zu verhindern.",7.6923076923076927E-2,null,null,false,null,null,0]
["A4.6","Unsere Mitarbeiter zeigen unternehmerisches Denken und Handeln.",7.6923076923076927E-2,null,null,false,null,null,0,"",null,"Innovationsförderung: Schaffe ein Umfeld, das Innovation und unternehmerisches Denken fördert.\nAnreize: Biete Anreize und Belohnungen für innovative Ideen und unternehmerisches Handeln.\nWeiterbildung: Biete Schulungen an, um unternehmerische Fähigkeiten weiterzuentwickeln.",7.6923076923076927E-2,null,null,false,null,null,0]
["A4.7","Unsere Mitarbeiter sind gut im Aufbau und der Pflege von Geschäftsnetzwerken.",7.6923076923076927E-2,null,null,false,null,null,0,"",null,"Netzwerkveranstaltungen: Organisiere regelmäßige Netzwerkveranstaltungen und -aktivitäten.\nOnline-Plattformen: Nutze Online-Plattformen, um den Aufbau und die Pflege von Netzwerken zu erleichtern.\nMentoring: Implementiere Mentoring-Programme, um den Austausch von Wissen und Erfahrungen zu fördern.",7.6923076923076927E-2,null,null,false,null,null,0]
["A4.8","Unsere Mitarbeiter sind kompetent im Umgang mit In-Memory-Datenbanken.",7.6923076923076927E-2,null,null,false,null,null,0,"",null,"Schulungen: Biete spezialisierte Schulungen zur Nutzung und Optimierung von In-Memory-Datenbanken an.\nPerformance-Optimierung: Entwickle Strategien zur Performance-Optimierung von In-Memory-Datenbanken.\nIntegration: Stelle sicher, dass In-Memory-Datenbanken nahtlos in bestehende Systeme integriert werden.",7.6923076923076927E-2,null,null,false,null,null,0]
["A4.9","Unsere Mitarbeiter sind erfahren in der Implementierung integrierter Produkt-Service-Systeme.",7.6923076923076927E-2,null,null,false,null,null,0,"",null,"Best Practices: Teile Best Practices und Erfolgsgeschichten zur Implementierung integrierter Produkt-Service-Systeme.\nKundenzentrierung: Fördere eine kundenzentrierte Denkweise, um die Bedürfnisse der Kunden besser zu verstehen und zu erfüllen.\nTechnologieeinsatz: Nutze moderne Technologien, um die Integration von Produkten und Dienstleistungen zu erleichtern.",7.6923076923076927E-2,null,null,false,null,null,0]
["A4.10","Unsere Mitarbeiter sind gut im Umgang mit IoT-Technologien geschult.",7.6923076923076927E-2,null,null,false,null,null,0,"",null,"Sicherheitsmaßnahmen: Implementiere strenge Sicherheitsmaßnahmen, um IoT-Geräte und -Daten zu schützen.\nDatenanalyse: Nutze Datenanalyse-Tools, um die aus IoT-Geräten gewonnenen Daten zu analysieren und zu nutzen.\nInteroperabilität: Stelle sicher, dass IoT-Geräte und -Systeme interoperabel sind und nahtlos zusammenarbeiten.",7.6923076923076927E-2,null,null,false,null,null,0]
["A4.11","Unsere Mitarbeiter sind kompetent in der Anwendung von KI und maschinellem Lernen.",7.6923076923076927E-2,null,null,false,null,null,0,"",null,"Schulungen: Biete spezialisierte Schulungen zur Anwendung von KI und maschinellem Lernen an.\nProjekte: Fördere die Durchführung von Projekten, die den Einsatz von KI und maschinellem Lernen beinhalten.\nEthik: Entwickle Richtlinien zur ethischen Nutzung von KI und maschinellem Lernen.",7.6923076923076927E-2,null,null,false,null,null,0]
["A4.12","Unsere Mitarbeiter sind erfahren im Einsatz mobiler Technologien.",{"$f":"1/$H$34","v":7.6923076923076927E-2},null,null,false,null,null,0,"",null,"Sicherheitsrichtlinien: Implementiere Sicherheitsrichtlinien für die Nutzung mobiler Technologien.\nApp-Entwicklung: Fördere die Entwicklung und Nutzung von mobilen Apps zur Unterstützung der Geschäftsprozesse.\nSupport: Biete technischen Support und Schulungen zur Nutzung mobiler Technologien an.",{"$f":"1/$H$34","v":7.6923076923076927E-2},null,null,false,null,null,0]
["A4.13","Unsere Mitarbeiter sind vertraut mit der Entwicklung und Nutzung neuartiger Benutzerschnittstellen.",7.6923076923076927E-2,null,null,false,null,null,0,"",null,"Usability-Tests: Führe regelmäßige Usability-Tests durch, um die Benutzerfreundlichkeit von Schnittstellen zu verbessern.\nDesign-Prinzipien: Fördere die Anwendung moderner Design-Prinzipien bei der Entwicklung von Benutzerschnittstellen.\nFeedback: Integriere Feedback-Schleifen, um kontinuierliche Verbesserungen zu ermöglichen.",7.6923076923076927E-2,null,null,false,null,null,0]
[null,null,null,null,null,null,null,13,{"$f":"SUM(I21:I33)","v":0},null,null,null,null,null,null,null,null,13,{"$f":"SUM(S21:S33)","v":0}]
["A5","Ressourcen und Voraussetzungen zur Durchführung der digitalen Transformation",null,null,null,null,null,null,null,""]
["A5.1","Wir haben die Möglichkeiten für unsere digitale Transformation identifiziert.",{"$f":"1/$H$42","v":0.16666666666666666},null,null,false,null,null,{"$f":"(IF(D36=TRUE,1,0)+IF(E36=TRUE,2,0)+IF(F36=TRUE,3,0)+IF(G36=TRUE,4,0)+IF(H36=TRUE,5,0))*C36","v":0},{"$f":"IF(OR(D36=TRUE,E36=TRUE),L36,\"\")","v":""},null,"Kompetenzmatrix: Entwickle eine Kompetenzmatrix, um die vorhandenen Fähigkeiten zu dokumentieren und Lücken zu identifizieren.\nWeiterbildung: Biete gezielte Weiterbildungsprogramme an, um die identifizierten Fähigkeiten weiter zu stärken.\nMonitoring: Implementiere ein System zur kontinuierlichen Überwachung und Aktualisierung der Kompetenzmatrix.",{"$f":"1/$H$42","v":0.16666666666666666},null,null,false,null,null,{"$f":"(IF(N36=TRUE,1,0)+IF(O36=TRUE,2,0)+IF(P36=TRUE,3,0)+IF(Q36=TRUE,4,0)+IF(R36=TRUE,5,0))*M36","v":0}]
["A5.2","Die Key-Player für die digitale Transformation sind bekannt.",{"$f":"1/$H$42","v":0.16666666666666666},null,null,false,null,null,0,"",null,"Rollenklärung: Definiere klare Rollen und Verantwortlichkeiten für die Key-Player.\nKommunikation: Fördere regelmäßige Kommunikation und Austausch zwischen den Key-Playern, um die Zusammenarbeit zu stärken.\nAnerkennung: Schaffe Anreize und Anerkennungssysteme, um die Motivation der Key-Player zu erhöhen.",{"$f":"1/$H$42","v":0.16666666666666666},null,null,false,null,null,0]
["A5.3","Wir investieren in die Entwicklung des benötigten Wissens.",0.16666666666666666,null,null,false,null,null,0,"",null,"Bildungsbudget: Stelle ein dediziertes Budget für die Weiterbildung und Wissensentwicklung bereit.\nPartnerschaften: Gehe Partnerschaften mit Bildungseinrichtungen und Technologieanbietern ein, um Zugang zu aktuellen Schulungen und Ressourcen zu erhalten.\nWissensmanagement: Implementiere ein Wissensmanagementsystem, um das erworbene Wissen zu dokumentieren und zu teilen.",0.16666666666666666,null,null,false,null,null,0]
["A5.4","Es gibt dedizierte Trainings im Bereich digitaler Transformation.",0.16666666666666666,null,null,false,null,null,0,"",null,"Trainingsplan: Entwickle einen umfassenden Trainingsplan, der verschiedene Aspekte der digitalen Transformation abdeckt.\nPraxisorientierung: Gestalte die Trainings praxisorientiert, um den direkten Transfer des Gelernten in den Arbeitsalltag zu ermöglichen.\nFeedback: Sammle regelmäßig Feedback von den Teilnehmern, um die Trainings kontinuierlich zu verbessern.",0.16666666666666666,null,null,false,null,null,0]
["A5.5","Wir haben dedizierte Rekrutierungsprogramme für die digitale Transformation.",0.16666666666666666,null,null,false,null,null,0,"",null,"Zielgruppenanalyse: Analysiere die Zielgruppen, um die Rekrutierungsstrategien gezielt auszurichten.\nEmployer Branding: Stärke das Employer Branding, um talentierte Fachkräfte für die digitale Transformation anzuziehen.\nOnboarding: Entwickle ein strukturiertes Onboarding-Programm, um neue Mitarbeiter schnell und effektiv in die digitalen Transformationsprojekte einzubinden.",0.16666666666666666,null,null,false,null,null,0]
["A5.6","Wir verfügen über ausreichend Personal mit Wissen und Erfahrung in der digitalen Transformation.",0.16666666666666666,null,null,false,null,null,0,"",null,"Talententwicklung: Fördere die kontinuierliche Talententwicklung, um das Wissen und die Erfahrung im Unternehmen zu halten und auszubauen.\nNetzwerke: Ermutige die Mitarbeiter, sich in Netzwerken und Fachgemeinschaften zu engagieren, um ihr Wissen zu erweitern und Best Practices auszutauschen.\nProjektbeteiligung: Binde erfahrene Mitarbeiter aktiv in digitale Transformationsprojekte ein, um ihre Expertise optimal zu nutzen.",0.16666666666666666,null,null,false,null,null,0]
[null,null,null,null,null,null,null,6,{"$f":"SUM(I36:I41)","v":0},null,null,null,null,null,null,null,null,6,{"$f":"SUM(S36:S41)","v":0}]
["A6","Supply-Chain",null,null,null,null,null,null,null,""]
["A6.1","Die aktuellen Daten zu unserer Lieferkette sind gut verfügbar.",{"$f":"1/$H$61","v":5.8823529411764705E-2},null,null,false,null,null,{"$f":"(IF(D44=TRUE,1,0)+IF(E44=TRUE,2,0)+IF(F44=TRUE,3,0)+IF(G44=TRUE,4,0)+IF(H44=TRUE,5,0))*C44","v":0},{"$f":"IF(OR(D44=TRUE,E44=TRUE),L44,\"\")","v":""},null,"Datenmanagementsystem: Implementiere ein zentrales Datenmanagementsystem, das alle relevanten Datenquellen integriert und eine einfache Verwaltung ermöglicht.\nDatenintegration: Stelle sicher, dass alle relevanten Datenquellen integriert sind, um eine umfassende und konsistente Datenbasis zu gewährleisten.\nSchulungen: Biete Schulungen zur Nutzung des Systems an, um sicherzustellen, dass alle Mitarbeiter die Daten effektiv nutzen können.",{"$f":"1/$H$61","v":5.8823529411764705E-2},null,null,false,null,null,{"$f":"(IF(N44=TRUE,1,0)+IF(O44=TRUE,2,0)+IF(P44=TRUE,3,0)+IF(Q44=TRUE,4,0)+IF(R44=TRUE,5,0))*M44","v":0}]
["A6.2","Die Genauigkeit und Vollständigkeit der vorhandenen Daten ist hoch.",{"$f":"1/$H$61","v":5.8823529411764705E-2},null,null,false,null,null,0,"",null,"Qualitätsprüfungen: Führe regelmäßige Datenqualitätsprüfungen durch, um die Genauigkeit und Vollständigkeit der Daten sicherzustellen.\nValidierungstools: Nutze automatisierte Datenvalidierungstools, um Fehler und Inkonsistenzen in den Daten frühzeitig zu erkennen und zu beheben.\nDatenpflege: Implementiere Prozesse zur kontinuierlichen Datenpflege, um die Datenqualität langfristig zu sichern.",{"$f":"1/$H$61","v":5.8823529411764705E-2},null,null,false,null,null,0]
["A6.3","Der Zugriff auf diese Daten ist für die relevanten Mitarbeiter einfach.",5.8823529411764705E-2,null,null,false,null,null,0,"",null,"Dashboards: Entwickle benutzerfreundliche Dashboards, die den einfachen und schnellen Zugriff auf relevante Daten ermöglichen.\nZugriffsrechte: Definiere klare Zugriffsrechte und Rollen, um sicherzustellen, dass nur autorisierte Mitarbeiter auf sensible Daten zugreifen können.\nSupport: Biete Support und Schulungen für die Mitarbeiter an, um den effizienten Umgang mit den Datenzugriffssystemen zu gewährleisten.",5.8823529411764705E-2,null,null,false,null,null,0]
["A6.4","Die Kommunikation innerhalb der Lieferkette ist effektiv.",5.8823529411764705E-2,null,null,false,null,null,0,"",null,"Kollaborationsplattformen: Nutze Kollaborationsplattformen für den Informationsaustausch.\nMeetings: Organisiere regelmäßige Meetings und Updates.\nFeedback-System: Implementiere ein Feedback-System zur Verbesserung der Kommunikation.",5.8823529411764705E-2,null,null,false,null,null,0]
["A6.5","Wir nutzen digitale Tools und Plattformen zur Überwachung unserer Lieferkette.",5.8823529411764705E-2,null,null,false,null,null,0,"",null,"Effizienzprüfung: Überprüfe regelmäßig die Effizienz der genutzten Überwachungstools, um sicherzustellen, dass sie den aktuellen Anforderungen entsprechen.\nSchulungen: Biete Schulungen zur optimalen Nutzung der Überwachungstools an, um die Fähigkeiten der Mitarbeiter zu verbessern.\nTechnologieintegration: Integriere neue Technologien zur Verbesserung der Überwachung und zur Steigerung der Effizienz.",5.8823529411764705E-2,null,null,false,null,null,0]
["A6.6","Unsere Systeme zur Echtzeit-Überwachung und -Analyse der Lieferkette sind gut.",5.8823529411764705E-2,null,null,false,null,null,0,"",null,"Predictive Analytics: Implementiere Predictive Analytics, um zukünftige Trends und Risiken frühzeitig zu erkennen und proaktiv zu handeln.\nMustererkennung: Nutze Tools zur Mustererkennung, um wiederkehrende Muster und Anomalien in den Daten zu identifizieren.\nRisikoanalysen: Führe regelmäßige Risikoanalysen durch, um potenzielle Risiken in der Lieferkette zu identifizieren und zu minimieren.",5.8823529411764705E-2,null,null,false,null,null,0]
["A6.7","Die Integration von Daten aus verschiedenen Quellen ist effektiv.",5.8823529411764705E-2,null,null,false,null,null,0,"",null,"Integrationslösungen: Nutze robuste Datenintegrationslösungen, um Daten aus verschiedenen Quellen nahtlos zu integrieren.\nDatenharmonisierung: Stelle sicher, dass die Daten harmonisiert sind, um Konsistenz und Vergleichbarkeit zu gewährleisten.\nDatenabgleiche: Implementiere regelmäßige Datenabgleiche, um die Integrität und Aktualität der Daten zu sichern.",5.8823529411764705E-2,null,null,false,null,null,0]
["A6.8","Wir nutzen Analysetools zur Identifikation von Mustern und Vorhersage von Risiken.",5.8823529411764705E-2,null,null,false,null,null,0,"",null,"Predictive Analytics: Implementiere Predictive Analytics, um zukünftige Trends und Risiken frühzeitig zu erkennen und proaktiv zu handeln.\nMustererkennung: Nutze Tools zur Mustererkennung, um wiederkehrende Muster und Anomalien in den Daten zu identifizieren.\nRisikoanalysen: Führe regelmäßige Risikoanalysen durch, um potenzielle Risiken in der Lieferkette zu identifizieren und zu minimieren.",5.8823529411764705E-2,null,null,false,null,null,0]
["A6.9","Unsere Pilotprojekte zur Testung neuer Technologien und Prozesse sind erfolgreich.",5.8823529411764705E-2,null,null,false,null,null,0,"",null,"Kriterien: Entwickle klare Kriterien für die Auswahl und Bewertung von Pilotprojekten, um die Erfolgsaussichten zu maximieren.\nErfolgsmessung: Implementiere Methoden zur Erfolgsmessung, um den Fortschritt und die Ergebnisse der Pilotprojekte zu bewerten.\nSkalierung: Skaliere erfolgreiche Pilotprojekte, um deren Vorteile auf das gesamte Unternehmen auszudehnen.",5.8823529411764705E-2,null,null,false,null,null,0]
["A6.10","Unsere Feedback-Schleifen zur kontinuierlichen Überprüfung und Anpassung der Maßnahmen sind effektiv. ",5.8823529411764705E-2,null,null,false,null,null,0,"",null,"Feedback-Mechanismen: Implementiere effektive Feedback-Mechanismen, um kontinuierliche Verbesserungen zu ermöglichen.\nAnpassungsfähigkeit: Fördere eine Kultur der Anpassungsfähigkeit, um schnell auf Veränderungen und neue Erkenntnisse reagieren zu können.\nKontinuierliche Verbesserung: Nutze Feedback zur kontinuierlichen Verbesserung der Prozesse und Systeme.",5.8823529411764705E-2,null,null,false,null,null,0]
["A6.11","Wir haben Transparenz in den Produktströmen meines Unternehmens.",5.8823529411764705E-2,null,null,false,null,null,0,"",null,"Visualisierung: Nutze Tools zur Visualisierung der Produktströme, um eine klare und verständliche Darstellung der Lieferkette zu gewährleisten.\nBerichterstattung: Entwickle regelmäßige Berichterstattungsprozesse, um die Transparenz und Nachvollziehbarkeit der Lieferkette zu erhöhen.\nEchtzeit-Tracking: Implementiere Echtzeit-Tracking, um die Bewegungen der Produkte in der Lieferkette in Echtzeit nachverfolgen zu können.",5.8823529411764705E-2,null,null,false,null,null,0]
["A6.12","Wir können Warenströme in Echtzeit nachvollziehen.",5.8823529411764705E-2,null,null,false,null,null,0,"",null,"Tracking-Systeme: Implementiere Echtzeit-Tracking-Systeme, die eine kontinuierliche Überwachung der Warenströme ermöglichen.\nDashboards: Nutze Dashboards zur Visualisierung der Echtzeit-Daten, um eine schnelle und einfache Analyse zu ermöglichen.\nSystemtests: Führe regelmäßige Systemtests durch, um die Zuverlässigkeit und Genauigkeit der Tracking-Systeme sicherzustellen.",5.8823529411764705E-2,null,null,false,null,null,0]
["A6.13","Wir besitzen durch digitale Tools Kenntnis über meine kurz-, mittel- und langfristigen Bedarfe.",5.8823529411764705E-2,null,null,false,null,null,0,"",null,"Digitale Tools: Nutze digitale Tools zur präzisen Bedarfsplanung und -prognose, um die Versorgungssicherheit zu gewährleisten.\nDatenanalyse: Verwende Datenanalyse-Tools, um Bedarfe zu identifizieren und zu planen.\nBedarfsprognosen: Implementiere regelmäßige Bedarfsprognosen, um kurz-, mittel- und langfristige Bedarfe genau vorherzusagen.",5.8823529411764705E-2,null,null,false,null,null,0]
["A6.14","Wir sind an unsere Lieferanten über ein System angebunden.",5.8823529411764705E-2,null,null,false,null,null,0,"",null,"Integrationssysteme: Implementiere Systeme zur nahtlosen Integration und Kommunikation mit Lieferanten.\nZusammenarbeit: Fördere eine enge Zusammenarbeit und regelmäßigen Austausch mit den Lieferanten, um die Effizienz der Lieferkette zu steigern.\nPlattformen: Nutze gemeinsame Plattformen für den Datenaustausch, um die Transparenz und Zusammenarbeit zu verbessern.",5.8823529411764705E-2,null,null,false,null,null,0]
["A6.15","Ich kann Lagerbestände bei wichtigen Bezugspartnern im Groben nachvollziehen.",5.8823529411764705E-2,null,null,false,null,null,0,"",null,"Überwachungssysteme: Nutze Systeme zur Bestandsüberwachung, um die Lagerbestände bei wichtigen Bezugspartnern im Groben nachvollziehen zu können.\nDatenabgleiche: Implementiere regelmäßige Datenabgleiche, um die Genauigkeit der Bestandsdaten zu gewährleisten.\nTransparenz: Fördere Transparenz in der Lieferkette, um Engpässe und Überbestände zu vermeiden.",5.8823529411764705E-2,null,null,false,null,null,0]
["A6.16","Ich habe mich ausreichend mit den Möglichkeiten digitaler ERP-Systeme auseinandergesetzt.",5.8823529411764705E-2,null,null,false,null,null,0,"",null,"Schulungen: Biete Schulungen zu den neuesten Funktionen und Möglichkeiten digitaler ERP-Systeme an.\nSystemauswahl: Wähle ERP-Systeme, die den spezifischen Anforderungen und Zielen des Unternehmens entsprechen.\nSystemupdates: Implementiere regelmäßige Systemupdates, um die Leistungsfähigkeit und Sicherheit der ERP-Systeme zu gewährleisten.",5.8823529411764705E-2,null,null,false,null,null,0]
["A6.17","Ich kann meine Supply-Chain-Partner bei ihrer Digitalisierung unterstützen.",5.8823529411764705E-2,null,null,false,null,null,0,"",null,"Partnerschaften: Entwickle Partnerschaften und Kooperationen zur Unterstützung der Digitalisierung der Supply-Chain-Partner.\nBest Practices: Fördere den Austausch von Best Practices und Erfolgsgeschichten zur Digitalisierung.\nRessourcen: Biete Schulungen und Ressourcen an, um die Supply-Chain-Partner bei der Digitalisierung zu unterstützen.",5.8823529411764705E-2,null,null,false,null,null,0]
[null,null,null,null,null,null,null,17,{"$f":"SUM(I44:I60)","v":0},null,null,null,null,null,null,null,null,17,{"$f":"SUM(S44:S60)","v":0}]
[null,null,null,null,null,null,null,null,{"$f":"SUM(I9,I19,I15,I34,I42,I61)/6","v":0},null,null,null,null,null,null,null,null,null,{"$f":"SUM(S9,S19,S15,S34,S42,S61)/6","v":0}]
[]
["A1","Geschäftsbereiche",null,{"$f":"I9","v":0}]
["A2","Unterstützung von Digitalisierungsvorhaben",null,{"$f":"I15","v":0}]
["A3","Führungsstil und Führungsstrukturen",null,{"$f":"I19","v":0}]
["A4","Mitarbeiterqualifikationen der Unternehmen",null,{"$f":"I34","v":0}]
["A5","Ressourcen und Voraussetzungen zur Durchführung der digitalen Transformation",null,{"$f":"I42","v":0},null,"Weiter zu:"]
["A6","Supply-Chain",null,{"$f":"I61","v":0}]
["A","Reifegrad Digitalisierung",null,{"$f":"SUM(D64:D69)/6","v":0}]

{"sheet":"Lieferantenmanagement","index":3,"n_rows":32,"n_cols":19,"rows_kept":32,"cut":false,"hidden":false,"merged":[[1,13,1,18],[8,13,8,18],[14,13,14,18],[20,13,20,18],[0,0,0,1],[1,3,1,8],[8,3,8,8],[14,3,14,8],[20,3,20,8]]}
[null,null,"Gewichtung","Stimme überhaupt nicht zu ","Stimme eher nicht zu","Neutral","Stimme eher zu","Stimme voll zu","Punkte","Mögliche Handlungsoptionen",null,null,"Gewichtung","Stimme überhaupt nicht zu ","Stimme eher nicht zu","Neutral","Stimme eher zu","Stimme voll zu","Punkte"]
["B1","Analyse und Bewertung"]
["B1.1","Wir haben kritische Teile und Lieferanten sehr gründlich analysiert.",{"$f":"1/$H$8","v":0.2},null,null,false,null,null,{"$f":"(IF(D3=TRUE,1,0)+IF(E3=TRUE,2,0)+IF(F3=TRUE,3,0)+IF(G3=TRUE,4,0)+IF(H3=TRUE,5,0))*C3","v":0},{"$f":"IF(OR(D3=TRUE,E3=TRUE),L3,\"\")","v":""},null,"Maßnahmen entwickeln: Nutzen Sie die Ergebnisse der Analyse, um gezielte Maßnahmen zur Risikominderung zu entwickeln.\nRegelmäßige Überprüfungen: Implementieren Sie regelmäßige Überprüfungen und aktualisieren Sie die Analysen, um auf Veränderungen in der Lieferkette schnell reagieren zu können.\nSchulungsprogramme: Entwickeln Sie Schulungsprogramme für Mitarbeiter, um sicherzustellen, dass alle relevanten Teams die Analyseergebnisse verstehen und anwenden können.",{"$f":"1/$H$8","v":0.2},null,null,false,null,null,{"$f":"(IF(N3=TRUE,1,0)+IF(O3=TRUE,2,0)+IF(P3=TRUE,3,0)+IF(Q3=TRUE,4,0)+IF(R3=TRUE,5,0))*M3","v":0}]
["B1.2","Wir haben objektive Kriterien, um zu beurteilen, ob ein Lieferant kritisch ist.",{"$f":"1/$H$8","v":0.2},null,null,false,null,null,0,{"$f":"IF(OR(D4=TRUE,E4=TRUE),L4,\"\")","v":""},null,"Regelmäßige Überprüfung: Stellen Sie sicher, dass diese Kriterien regelmäßig überprüft und angepasst werden, um aktuelle Marktbedingungen und Unternehmensstrategien zu berücksichtigen.\nTeam-Schulungen: Führen Sie Schulungen für das Team durch, um die Anwendung dieser Kriterien zu standardisieren und zu verbessern.\nIntegration: Integrieren Sie diese Kriterien in Ihre Lieferantenbewertungssysteme und -prozesse, um eine konsistente und objektive Bewertung zu gewährleisten.",{"$f":"1/$H$8","v":0.2},null,null,false,null,null,0]
["B1.3","Wir haben alle unsere kritischen Tier-1 bis Tier-3-Lieferanten identifiziert.",0.2,null,null,false,null,null,0,"",null,"Notfallpläne: Entwickeln Sie Notfallpläne und alternative Beschaffungsstrategien für diese Lieferanten.\nRegelmäßige Audits: Führen Sie regelmäßige Audits durch, um die Leistungsfähigkeit und Zuverlässigkeit dieser Lieferanten zu überwachen.\nZusammenarbeit: Arbeiten Sie eng mit diesen Lieferanten zusammen, um deren Resilienz zu stärken und gemeinsame Risikominderungsstrategien zu entwickeln.",0.2,null,null,false,null,null,0]
["B1.4","Wir haben alle unsere kritischen Lieferanten über Tier-3 hinaus identifiziert.",0.2,null,null,false,null,null,0,"",null,"Tracking erweitern: Erweitern Sie Ihre Trackingstrategien, um auch diese Lieferanten einzubeziehen.\nTechnologien nutzen: Nutzen Sie Technologien wie Blockchain, um die Transparenz und Rückverfolgbarkeit in der gesamten Lieferkette zu verbessern.\nPartnerschaften entwickeln: Entwickeln Sie Partnerschaften und Kooperationsprogramme, um die Resilienz und Nachhaltigkeit dieser Lieferanten zu fördern.",0.2,null,null,false,null,null,0]
["B1.5","Wir führen Bonitätsprüfungen und Kreditüberwachungen für kritische Lieferanten durch.",0.2,null,null,false,null,null,0,"",null,"Finanzanalysen: Ergänzen Sie diese Überwachungen durch regelmäßige Finanzanalysen und Marktbeobachtungen, um frühzeitig auf finanzielle Risiken reagieren zu können.\nUnterstützungsstrategien: Entwickeln Sie Strategien zur Unterstützung von Lieferanten in finanziellen Schwierigkeiten, um die Stabilität der Lieferkette zu gewährleisten.\nFrühwarnsystem: Implementieren Sie ein Frühwarnsystem, das auf finanzielle Indikatoren und Marktveränderungen reagiert, um proaktiv Maßnahmen ergreifen zu können.",0.2,null,null,false,null,null,0]
[null,null,null,null,null,null,null,5,{"$f":"SUM(I3:I7)","v":0},null,null,null,null,null,null,null,null,5,{"$f":"SUM(S3:S7)","v":0}]
["B2","Flexibilität"]
["B2.1","Wir haben langfristig problematische Lieferanten vollständig substituiert.",{"$f":"1/H$14","v":0.25},null,null,false,null,null,{"$f":"(IF(D10=TRUE,1,0)+IF(E10=TRUE,2,0)+IF(F10=TRUE,3,0)+IF(G10=TRUE,4,0)+IF(H10=TRUE,5,0))*C10","v":0},{"$f":"IF(OR(D10=TRUE,E10=TRUE),L10,\"\")","v":""},null,"Alternative Lieferanten: Identifizieren Sie alternative Lieferanten, die qualitativ hochwertige Produkte liefern können, und bauen Sie langfristige Beziehungen zu ihnen auf.\nRisikobewertung: Führen Sie eine umfassende Risikobewertung der neuen Lieferanten durch, um sicherzustellen, dass sie zuverlässig und stabil sind.\nLeistungsüberwachung: Implementieren Sie ein System zur kontinuierlichen Überwachung der Leistung der neuen Lieferanten, um sicherzustellen, dass sie den Anforderungen entsprechen.",{"$f":"1/R$14","v":0.25},null,null,false,null,null,{"$f":"(IF(N10=TRUE,1,0)+IF(O10=TRUE,2,0)+IF(P10=TRUE,3,0)+IF(Q10=TRUE,4,0)+IF(R10=TRUE,5,0))*M10","v":0}]
["B2.2","Wir haben Maßnahmen eingeleitet, die den Lieferantenwechselprozess vollständig beschleunigen.",{"$f":"1/H$14","v":0.25},null,null,false,null,null,0,"",null,"Standardisierte Prozesse: Entwickeln Sie standardisierte Prozesse und Checklisten für den Lieferantenwechsel, um den Prozess effizienter zu gestalten.\nSchulungen: Schulen Sie Ihr Team regelmäßig in den neuen Prozessen und Best Practices, um sicherzustellen, dass alle Beteiligten den Wechsel reibungslos durchführen können.\nTechnologieeinsatz: Nutzen Sie digitale Tools und Plattformen, um den Lieferantenwechsel zu automatisieren und zu beschleunigen.",{"$f":"1/R$14","v":0.25},null,null,false,null,null,0]
["B2.3","Bei geeigneten Rohstoffen oder Vorprodukten haben wir die regionale Strategie des Multiple Sourcing vollständig betrachtet.",0.25,null,null,false,null,null,0,"",null,"Regionale Lieferanten: Identifizieren Sie regionale Lieferanten, die Ihre Anforderungen erfüllen können, und bauen Sie Beziehungen zu ihnen auf.\nRisikostreuung: Nutzen Sie Multiple Sourcing, um das Risiko von Lieferengpässen zu minimieren und die Versorgungssicherheit zu erhöhen.\nKosten-Nutzen-Analyse: Führen Sie eine Kosten-Nutzen-Analyse durch, um die wirtschaftlichen Vorteile und potenziellen Risiken der regionalen Beschaffungsstrategie zu bewerten.",0.25,null,null,false,null,null,0]
["B2.4","Wir haben unsere Bestandsstrategien bewertet (z.B. eine Reduzierung von Just-in-Time-Belieferungen).",0.25,null,null,false,null,null,0,"",null,"Bestandsoptimierung: Überprüfen und optimieren Sie Ihre Bestandsstrategien, um eine Balance zwischen Lagerkosten und Versorgungssicherheit zu finden.\nSicherheitsbestände: Erhöhen Sie gegebenenfalls die Sicherheitsbestände für kritische Teile, um Lieferengpässe zu vermeiden.\nPrognosetools: Nutzen Sie fortschrittliche Prognosetools und Datenanalysen, um den Bedarf genauer zu planen und Bestände effizient zu verwalten.",0.25,null,null,false,null,null,0]
[null,null,null,null,null,null,null,4,{"$f":"SUM(I10:I13)","v":0},null,null,null,null,null,null,null,null,4,{"$f":"SUM(S10:S13)","v":0}]
["B3","Zusammenarbeit und Partnerschaften"]
["B3.1","Wir haben in den letzten 12 Monaten gemeinsam mit Lieferanten Entscheidungen über die optimale Bestellmenge und den Lagerbedarf getroffen.",{"$f":"1/H$20","v":0.25},null,null,false,null,null,{"$f":"(IF(D16=TRUE,1,0)+IF(E16=TRUE,2,0)+IF(F16=TRUE,3,0)+IF(G16=TRUE,4,0)+IF(H16=TRUE,5,0))*C16","v":0},{"$f":"IF(OR(D16=TRUE,E16=TRUE),L16,\"\")","v":""},null,"Datenanalyse: Nutzen Sie fortschrittliche Datenanalysetools, um historische Bestelldaten und Nachfrageprognosen zu analysieren und so die Bestellmengen und Lagerbedarfe präziser zu bestimmen.\nKoordination: Fördern Sie die enge Zusammenarbeit und regelmäßige Kommunikation mit Ihren Lieferanten, um gemeinsam auf Veränderungen in der Nachfrage und im Marktumfeld reagieren zu können.\nFlexibilität: Entwickeln Sie flexible Bestell- und Lagerstrategien, die es Ihnen ermöglichen, schnell auf unvorhergesehene Ereignisse oder Nachfrageschwankungen zu reagieren.",{"$f":"1/R$20","v":0.25},null,null,false,null,null,{"$f":"(IF(N16=TRUE,1,0)+IF(O16=TRUE,2,0)+IF(P16=TRUE,3,0)+IF(Q16=TRUE,4,0)+IF(R16=TRUE,5,0))*M16","v":0}]
["B3.2","Mit einigen unserer Lieferanten haben wir Vereinbarungen zur Risiko- oder Umsatzbeteiligung getroffen.",{"$f":"1/H$20","v":0.25},null,null,false,null,null,0,"",null,"Vertragsgestaltung: Stellen Sie sicher, dass die Vereinbarungen klar und umfassend in den Verträgen festgehalten sind, um Missverständnisse zu vermeiden und die Zusammenarbeit zu stärken.\nTransparenz: Fördern Sie Transparenz und regelmäßigen Informationsaustausch mit Ihren Lieferanten, um die gemeinsame Risikobewertung und -bewältigung zu erleichtern.\nAnreize: Entwickeln Sie Anreizsysteme, die Lieferanten motivieren, aktiv zur Risikominderung und Umsatzsteigerung beizutragen.",{"$f":"1/R$20","v":0.25},null,null,false,null,null,0]
["B3.3","Unser Unternehmen baut starke Beziehungen zu Lieferanten auf.",0.25,null,null,false,null,null,0,"",null,"Kommunikation: Etablieren Sie regelmäßige Kommunikationskanäle und Meetings, um eine offene und vertrauensvolle Zusammenarbeit zu fördern.\nPartnerschaften: Entwickeln Sie langfristige Partnerschaften mit strategischen Lieferanten, die auf gemeinsamen Zielen und Werten basieren.\nUnterstützung: Bieten Sie Ihren Lieferanten Unterstützung in Form von Schulungen, technischen Hilfen oder gemeinsamen Entwicklungsprojekten an, um die Zusammenarbeit zu stärken.",0.25,null,null,false,null,null,0]
["B3.4","Wir unterstützen einige Lieferanten direkt bei der Aufrechterhaltung der Zahlungsfähigkeit in Krisenzeiten/Störungen durch andere Mittel als Reverse Factoring (z.B. Garantie von Bankkrediten an Lieferanten).",0.25,null,null,false,null,null,0,"",null,"Finanzielle Unterstützung: Entwickeln Sie Programme zur finanziellen Unterstützung, wie z.B. die Garantie von Bankkrediten oder die Bereitstellung von kurzfristigen Darlehen, um Lieferanten in Krisenzeiten zu helfen.\nBeratung: Bieten Sie Ihren Lieferanten Beratung und Unterstützung bei der Verbesserung ihrer finanziellen Stabilität und Liquiditätsplanung an.\nKooperation: Arbeiten Sie eng mit Ihren Lieferanten zusammen, um gemeinsam Lösungen für finanzielle Herausforderungen zu entwickeln und die langfristige Stabilität der Lieferkette zu gewährleisten.",0.25,null,null,false,null,null,0]
[null,null,null,null,null,null,null,4,{"$f":"SUM(I16:I19)","v":0},null,null,null,null,null,null,null,null,4,{"$f":"SUM(S16:S19)","v":0}]
["B4","Strategische Planung und Innovation"]
["B4.1","Wir führen eine gemeinsame, langfristige Planung mit strategischen Partnern in der Lieferkette durch, um ihre langfristigen Ziele zu verstehen und Möglichkeiten für eine Zusammenarbeit im Laufe der Zeit zu identifizieren.",{"$f":"1/$H$25","v":0.33333333333333331},null,null,false,null,null,{"$f":"(IF(D22=TRUE,1,0)+IF(E22=TRUE,2,0)+IF(F22=TRUE,3,0)+IF(G22=TRUE,4,0)+IF(H22=TRUE,5,0))*C22","v":0},{"$f":"IF(OR(D22=TRUE,E22=TRUE),L22,\"\")","v":""},null,"Zielabstimmung: Organisieren Sie regelmäßige Workshops und Meetings, um die langfristigen Ziele Ihrer strategischen Partner zu verstehen und sicherzustellen, dass diese mit Ihren eigenen Unternehmenszielen übereinstimmen.\nKooperationsprojekte: Identifizieren Sie gemeinsame Projekte und Initiativen, die sowohl Ihren Partnern als auch Ihrem Unternehmen langfristige Vorteile bringen, und entwickeln Sie detaillierte Aktionspläne.\nTransparenz: Fördern Sie eine Kultur der Transparenz und des offenen Austauschs von Informationen, um Vertrauen aufzubauen und die Zusammenarbeit zu stärken.",{"$f":"1/$H$25","v":0.33333333333333331},null,null,false,null,null,{"$f":"(IF(N22=TRUE,1,0)+IF(O22=TRUE,2,0)+IF(P22=TRUE,3,0)+IF(Q22=TRUE,4,0)+IF(R22=TRUE,5,0))*M22","v":0}]
["B4.2","Wir arbeiten mit strategischen Partnern in der Lieferkette bei gemeinsamen Innovations- oder gemeinsamen Marketinginitiativen zusammen.",{"$f":"1/$H$25","v":0.33333333333333331},null,null,false,null,null,0,"",null,"Innovationsworkshops: Veranstalten Sie Innovationsworkshops und Brainstorming-Sitzungen, um gemeinsam neue Ideen und Lösungen zu entwickeln, die den Marktanforderungen entsprechen.\nMarketingkampagnen: Entwickeln Sie gemeinsame Marketingkampagnen, die die Stärken beider Partner nutzen und die Sichtbarkeit und Reichweite Ihrer Produkte und Dienstleistungen erhöhen.\nRessourcenteilung: Teilen Sie Ressourcen und Fachwissen, um die Effizienz und Effektivität der Innovations- und Marketinginitiativen zu maximieren.",{"$f":"1/$H$25","v":0.33333333333333331},null,null,false,null,null,0]
["B4.3","Wir nutzen ein gemeinsames Performance-Management-System mit strategischen Partnern in der Lieferkette, um die gemeinsame Überwachung des Fortschritts bei gemeinsamen Kennzahlen und Zielen zu ermöglichen.",0.33333333333333331,null,null,false,null,null,0,"",null,"KPIs festlegen: Definieren Sie gemeinsam mit Ihren Partnern klare und messbare Key Performance Indicators (KPIs), die den Fortschritt und Erfolg der Zusammenarbeit überwachen.\nRegelmäßige Überprüfungen: Führen Sie regelmäßige Überprüfungen und Feedback-Sitzungen durch, um den Fortschritt zu bewerten und bei Bedarf Anpassungen vorzunehmen.\nTechnologieintegration: Nutzen Sie digitale Plattformen und Tools, um die Performance-Daten in Echtzeit zu erfassen und zu analysieren, und stellen Sie sicher, dass alle Partner Zugang zu diesen Informationen haben.",0.33333333333333331,null,null,false,null,null,0]
[null,null,null,null,null,null,null,3,{"$f":"SUM(I22:I24)/3","v":0},null,null,null,null,null,null,null,null,3,{"$f":"SUM(S22:S24)/3","v":0}]
[null,null,null,null,null,null,null,null,{"$f":"SUM(I8,I14,I20,I25)/4","v":0},null,null,null,null,null,null,null,null,null,{"$f":"SUM(S8,S14,S20,S25)/4","v":0}]
[]
["B1","Analyse und Bewertung",null,{"$f":"I8","v":0}]
["B2","Flexibilität",null,{"$f":"I14","v":0}]
["B3","Zusammenarbeit und Partnerschaften",null,{"$f":"I14","v":0}]
["B4","Strategische Planung und Innovation",null,{"$f":"I25","v":0}]
["B","Reifegrad Lieferantenmanagement",null,{"$f":"SUM(D28:D31)/4","v":0}]

{"sheet":"Risikomanagement","index":4,"n_rows":41,"n_cols":19,"rows_kept":41,"cut":false,"hidden":false,"merged":[[0,0,0,1],[26,3,26,8],[1,3,1,8],[7,3,7,8],[13,3,13,8],[18,3,18,8],[22,3,22,8],[26,13,26,18],[1,13,1,18],[7,13,7,18],[13,13,13,18],[18,13,18,18],[22,13,22,18]]}
[null,null,"Gewichtung","Stimme überhaupt nicht zu ","Stimme eher nicht zu","Neutral","Stimme eher zu","Stimme voll zu","Punkte","Mögliche Handlungsoptionen",null,"Handlungsoptionen","Gewichtung","Stimme überhaupt nicht zu ","Stimme eher nicht zu","Neutral","Stimme eher zu","Stimme voll zu","Punkte"]
["C1","Risikomanagement-Kultur und Organisation"]
["C1.1","Wir haben eine Sensibilisierung der Belegschaft vollzogen und somit eine Kultur des Risikomanagements geschaffen.",{"$f":"1/H$7","v":0.25},null,null,false,null,null,{"$f":"(IF(D3=TRUE,1,0)+IF(E3=TRUE,2,0)+IF(F3=TRUE,3,0)+IF(G3=TRUE,4,0)+IF(H3=TRUE,5,0))*C3","v":0},{"$f":"IF(OR(D3=TRUE,E3=TRUE),L3,\"\")","v":""},null,"Schulungen intensivieren: Regelmäßige Workshops und Schulungen zur Vertiefung des Risikomanagement-Wissens.\nKommunikation fördern: Offene Kommunikationskanäle schaffen, um Risikothemen kontinuierlich zu diskutieren.\nBest Practices teilen: Erfolgreiche Risikomanagement-Beispiele aus anderen Abteilungen oder Unternehmen vorstellen.",{"$f":"1/R$7","v":0.25},null,null,false,null,null,{"$f":"(IF(N3=TRUE,1,0)+IF(O3=TRUE,2,0)+IF(P3=TRUE,3,0)+IF(Q3=TRUE,4,0)+IF(R3=TRUE,5,0))*M3","v":0}]
["C1.2","Wir haben eine Risikomanagement-Organisation aufgebaut, die Risiken für mein Unternehmen erkennen und bewerten kann.",{"$f":"1/H$7","v":0.25},null,null,false,null,null,0,{"$f":"IF(OR(D4=TRUE,E4=TRUE),L4,\"\")","v":""},null,"Rollen klar definieren: Verantwortlichkeiten und Zuständigkeiten innerhalb der Risikomanagement-Organisation eindeutig festlegen.\nRisikobewertungstools einsetzen: Moderne Softwarelösungen zur Identifikation und Bewertung von Risiken implementieren.\nRegelmäßige Audits durchführen: Interne und externe Audits zur Überprüfung der Effektivität des Risikomanagements einplanen.",{"$f":"1/R$7","v":0.25},null,null,false,null,null,0]
["C1.3","Die Aktivitäten des Supply-Chain-Risikomanagements sind über alle Geschäftsfunktionen hinweg gut koordiniert.",0.25,null,null,false,null,null,0,"",null,"Interdisziplinäre Teams bilden: Teams aus verschiedenen Geschäftsbereichen zusammenstellen, um eine ganzheitliche Risikobetrachtung zu gewährleisten.\nProzesse standardisieren: Einheitliche Prozesse und Verfahren für das Risikomanagement in der gesamten Lieferkette etablieren.\nKontinuierliche Verbesserung: Regelmäßige Überprüfung und Anpassung der Risikomanagement-Strategien basierend auf aktuellen Entwicklungen und Feedback.",0.25,null,null,false,null,null,0]
["C1.4","Die Aktivitäten des Supply Chain Risk Managements in unserem Unternehmen werden von der Geschäftsleitung unterstützt.",0.25,null,null,false,null,null,0,"",null,"Strategische Priorität setzen: Risikomanagement als festen Bestandteil der Unternehmensstrategie verankern.\nRessourcen bereitstellen: Ausreichende finanzielle und personelle Ressourcen für das Risikomanagement bereitstellen.\nVorbildfunktion übernehmen: Geschäftsleitung sollte aktiv am Risikomanagement teilnehmen und dessen Bedeutung vorleben.",0.25,null,null,false,null,null,0]
[null,null,null,null,null,null,null,4,{"$f":"SUM(I3:I6)","v":0},null,null,null,null,null,null,null,null,4,{"$f":"SUM(S3:S6)","v":0}]
["C2","Finanzierung und Ressourcen"]
["C2.1","Die Aktivitäten im Bereich Supply Chain Risk Management sind gut finanziert und gut ausgestattet.",{"$f":"1/$H$13","v":0.25},null,null,false,null,null,{"$f":"(IF(D9=TRUE,1,0)+IF(E9=TRUE,2,0)+IF(F9=TRUE,3,0)+IF(G9=TRUE,4,0)+IF(H9=TRUE,5,0))*C9","v":0},{"$f":"IF(OR(D9=TRUE,E9=TRUE),L9,\"\")","v":""},null,"Investitionen überwachen: Regelmäßige Überprüfung der Investitionen, um sicherzustellen, dass die Mittel effizient genutzt werden.\nTechnologie nutzen: Einsatz fortschrittlicher Technologien zur Verbesserung der Risikomanagementprozesse.\nMitarbeiter schulen: Kontinuierliche Weiterbildung der Mitarbeiter, um sicherzustellen, dass sie mit den neuesten Tools und Methoden vertraut sind.",{"$f":"1/$H$13","v":0.25},null,null,false,null,null,{"$f":"(IF(N9=TRUE,1,0)+IF(O9=TRUE,2,0)+IF(P9=TRUE,3,0)+IF(Q9=TRUE,4,0)+IF(R9=TRUE,5,0))*M9","v":0}]
["C2.2","Wir halten strategische Lagerbestände und geeignete Überkapazitäten aufrecht.",{"$f":"1/$H$13","v":0.25},null,null,false,null,null,0,"",null,"Bedarfsprognosen verbessern: Nutzung von Datenanalysen zur präzisen Vorhersage von Nachfrage und Lagerbeständen.\nLagerbestände optimieren: Regelmäßige Überprüfung und Anpassung der Lagerbestände, um Überkapazitäten zu vermeiden.\nLieferantenbeziehungen stärken: Enge Zusammenarbeit mit Lieferanten, um Flexibilität und Reaktionsfähigkeit zu erhöhen.",{"$f":"1/$H$13","v":0.25},null,null,false,null,null,0]
["C2.3","Der Ressourcenverbrauchswert unseres Unternehmens spiegelt die Leistung und Fähigkeit wider, den Material-, Energie- oder Wasserverbrauch zu reduzieren und durch die Verbesserung des Lieferkettenmanagements ökoeffizientere Lösungen zu finden.",0.25,null,null,false,null,null,0,"",null,"Nachhaltigkeitsziele setzen: Klare Ziele zur Reduzierung des Ressourcenverbrauchs und zur Verbesserung der Ökoeffizienz definieren.\nEffizienzprogramme implementieren: Programme zur Steigerung der Energie- und Materialeffizienz in der gesamten Lieferkette einführen.\nErfolge messen: Regelmäßige Überwachung und Berichterstattung über die Fortschritte bei der Reduzierung des Ressourcenverbrauchs.",0.25,null,null,false,null,null,0]
["C2.4","Die finanziellen Ressourcen des Unternehmens sind hoch genug um Schwankungen des Cashflows aufzufangen. ",0.25,null,null,false,null,null,0,"",null,"Liquidität: Berechnet als (Umlaufvermögen - Vorräte) / kurzfristige Verbindlichkeiten. \nKapitalrendite: Prozentuale Veränderung der Kapitalrendite Ihres Unternehmens seit dem letzten Jahr. \nOperative Marge: Prozentuale Veränderung der operativen Marge Ihres Unternehmens seit dem letzten Jahr.",0.25,null,null,false,null,null,0]
[null,null,null,null,null,null,null,4,{"$f":"SUM(I9:I12)","v":0},null,null,null,null,null,null,null,null,4,{"$f":"SUM(S9:S12)","v":0}]
["C3","Tools und Technologien"]
["C3.1","Unsere Risikomanagement-Tools entsprechen dem neuesten Stand.",{"$f":"1/$H$18","v":0.33333333333333331},null,null,false,null,null,{"$f":"(IF(D15=TRUE,1,0)+IF(E15=TRUE,2,0)+IF(F15=TRUE,3,0)+IF(G15=TRUE,4,0)+IF(H15=TRUE,5,0))*C15","v":0},{"$f":"IF(OR(D15=TRUE,E15=TRUE),L15,\"\")","v":""},null,"Marktanalyse durchführen: Regelmäßige Überprüfung und Bewertung neuer Risikomanagement-Tools auf dem Markt.\nPilotprojekte starten: Neue Tools in kleineren Projekten testen, um deren Effektivität und Benutzerfreundlichkeit zu bewerten.\nFeedback einholen: Rückmeldungen von Mitarbeitern und Stakeholdern sammeln, um die Auswahl und Implementierung der besten Tools zu unterstützen.",{"$f":"1/$H$18","v":0.33333333333333331},null,null,false,null,null,{"$f":"(IF(N15=TRUE,1,0)+IF(O15=TRUE,2,0)+IF(P15=TRUE,3,0)+IF(Q15=TRUE,4,0)+IF(R15=TRUE,5,0))*M15","v":0}]
["C3.2","Unsere Tools können ein vollständiges Mapping des Liefernetzwerks gewährleisten.",{"$f":"1/$H$18","v":0.33333333333333331},null,null,false,null,null,0,"",null,"Datenintegration verbessern: Sicherstellen, dass alle relevanten Datenquellen in das Mapping-Tool integriert sind.\nTransparenz fördern: Regelmäßige Updates und Visualisierungen des Liefernetzwerks bereitstellen, um Transparenz zu gewährleisten.\nRisikoanalyse durchführen: Identifikation und Bewertung potenzieller Risiken innerhalb des gesamten Liefernetzwerks.",{"$f":"1/$H$18","v":0.33333333333333331},null,null,false,null,null,0]
["C3.3","Wir verwenden risikounabhängige Methoden, um mehr über systemische Probleme in unserer Lieferkette zu erfahren.",0.33333333333333331,null,null,false,null,null,0,"",null,"Prozessanalysen durchführen: Regelmäßige Überprüfung und Analyse der Lieferkettenprozesse, um systemische Schwachstellen zu identifizieren.\nBenchmarking nutzen: Vergleich der eigenen Lieferkettenprozesse mit Best Practices und Branchenstandards.\nKontinuierliche Verbesserung: Implementierung eines kontinuierlichen Verbesserungsprozesses, um systemische Probleme proaktiv zu adressieren.",0.33333333333333331,null,null,false,null,null,0]
[null,null,null,null,null,null,null,3,{"$f":"SUM(I15:I17)","v":0},null,null,null,null,null,null,null,null,3,{"$f":"SUM(S15:S17)","v":0}]
["C4","Planung und Simulation"]
["C4.1","Wir simulieren extreme Angebots- und Nachfrageschwankungen und stellen Planungen an, diese ausgleichen zu können.",{"$f":"1/$H$22","v":0.5},null,null,false,null,null,{"$f":"(IF(D20=TRUE,1,0)+IF(E20=TRUE,2,0)+IF(F20=TRUE,3,0)+IF(G20=TRUE,4,0)+IF(H20=TRUE,5,0))*C20","v":0},{"$f":"IF(OR(D20=TRUE,E20=TRUE),L20,\"\")","v":""},null,"Szenarien entwickeln: Verschiedene Szenarien für extreme Schwankungen erstellen und deren potenzielle Auswirkungen analysieren.\nFlexibilität erhöhen: Strategien entwickeln, um die Flexibilität in der Produktion und Logistik zu steigern, um auf Schwankungen reagieren zu können.\nNotfallpläne erstellen: Detaillierte Notfallpläne für verschiedene Szenarien entwickeln und regelmäßig testen.",{"$f":"1/$H$22","v":0.5},null,null,false,null,null,{"$f":"(IF(N20=TRUE,1,0)+IF(O20=TRUE,2,0)+IF(P20=TRUE,3,0)+IF(Q20=TRUE,4,0)+IF(R20=TRUE,5,0))*M20","v":0}]
["C4.2","Wir analysieren vergangene Störungen und deren Auswirkungen auf unser Unternehmen und setzen die gewonnenen Erkenntnisse in verbesserte Reaktionsstrategien um.",{"$f":"1/$H$22","v":0.5},null,null,false,null,null,0,"",null,"Daten sammeln: Systematische Erfassung und Analyse von Daten zu vergangenen Störungen und deren Auswirkungen.\nLernprozesse etablieren: Prozesse einführen, um aus vergangenen Störungen zu lernen und diese Erkenntnisse in die Planung und Strategie einfließen zu lassen.\nReaktionsstrategien anpassen: Basierend auf den gewonnenen Erkenntnissen kontinuierlich die Reaktionsstrategien verbessern und anpassen.",{"$f":"1/$H$22","v":0.5},null,null,false,null,null,0]
[null,null,null,null,null,null,null,2,{"$f":"SUM(I20:I21)","v":0},null,null,null,null,null,null,null,null,2,{"$f":"SUM(S20:S21)","v":0}]
["C5","Risikokennzahlen und Strategien"]
["C5.1","Wir haben Risikokennzahlen mit Auslöseschwellen und Schwellenwerten definiert, die auf unsere Risikobereitschaft und -toleranz zugeschnitten sind.",{"$f":"1/$H$26","v":0.5},null,null,false,null,null,{"$f":"(IF(D24=TRUE,1,0)+IF(E24=TRUE,2,0)+IF(F24=TRUE,3,0)+IF(G24=TRUE,4,0)+IF(H24=TRUE,5,0))*C24","v":0},{"$f":"IF(OR(D24=TRUE,E24=TRUE),L24,\"\")","v":""},null,"Regelmäßige Überprüfung: Überprüfen Sie regelmäßig die definierten Schwellenwerte und passen Sie diese an veränderte Marktbedingungen und Unternehmensstrategien an.\nAutomatisierung nutzen: Implementieren Sie automatisierte Systeme zur Überwachung der Risikokennzahlen und zur sofortigen Benachrichtigung bei Überschreitung der Schwellenwerte.\nSchulung der Mitarbeiter: Stellen Sie sicher, dass alle relevanten Mitarbeiter die Bedeutung der Risikokennzahlen und deren Schwellenwerte verstehen und wissen, wie sie darauf reagieren sollen.",{"$f":"1/$H$26","v":0.5},null,null,false,null,null,{"$f":"(IF(N24=TRUE,1,0)+IF(O24=TRUE,2,0)+IF(P24=TRUE,3,0)+IF(Q24=TRUE,4,0)+IF(R24=TRUE,5,0))*M24","v":0}]
["C5.2","Wir segmentieren unsere Risikostrategie auf der Grundlage wichtiger Produktunterscheidungsmerkmale.",{"$f":"1/$H$26","v":0.5},null,null,false,null,null,0,"",null,"Produktanalyse durchführen: Führen Sie eine detaillierte Analyse der Produkte durch, um deren spezifische Risiken und Unterscheidungsmerkmale zu identifizieren.\nAngepasste Strategien entwickeln: Entwickeln Sie für jede Produktkategorie spezifische Risikomanagementstrategien, die auf deren individuelle Merkmale und Risiken zugeschnitten sind.\nKontinuierliche Anpassung: Überprüfen und aktualisieren Sie regelmäßig die Risikostrategien, um sicherzustellen, dass sie den aktuellen Marktbedingungen und Produktentwicklungen entsprechen.",{"$f":"1/$H$26","v":0.5},null,null,false,null,null,0]
[null,null,null,null,null,null,null,2,{"$f":"SUM(I24:I25)","v":0},null,null,null,null,null,null,null,null,2,{"$f":"SUM(S24:S25)","v":0}]
["C6","Management und Dokumentation"]
["C6.1","Unser Management ist sich der Risiken bewusst, denen unsere Lieferkette ausgesetzt ist.",{"$f":"1/$H$32","v":0.25},null,null,false,null,null,{"$f":"(IF(D28=TRUE,1,0)+IF(E28=TRUE,2,0)+IF(F28=TRUE,3,0)+IF(G28=TRUE,4,0)+IF(H28=TRUE,5,0))*C28","v":0},{"$f":"IF(OR(D28=TRUE,E28=TRUE),L28,\"\")","v":""},null,"Regelmäßige Briefings: Führen Sie regelmäßige Briefings und Updates für das Management durch, um über aktuelle Risiken und Entwicklungen zu informieren.\nRisikoberichte erstellen: Erstellen Sie detaillierte Risikoberichte, die die potenziellen Auswirkungen und Maßnahmen zur Risikominderung aufzeigen.\nWorkshops und Schulungen: Organisieren Sie Workshops und Schulungen für das Management, um das Verständnis und die Fähigkeiten im Risikomanagement zu vertiefen.",{"$f":"1/$H$32","v":0.25},null,null,false,null,null,{"$f":"(IF(N28=TRUE,1,0)+IF(O28=TRUE,2,0)+IF(P28=TRUE,3,0)+IF(Q28=TRUE,4,0)+IF(R28=TRUE,5,0))*M28","v":0}]
["C6.2","Wir dokumentieren Risiken und Schwachstellen in unserer Lieferkette, die durch Beinaheunfälle aufgedeckt wurden.",{"$f":"1/$H$32","v":0.25},null,null,false,null,null,0,"",null,"Beinaheunfälle analysieren: Führen Sie gründliche Analysen von Beinaheunfällen durch, um die zugrunde liegenden Ursachen und potenziellen Risiken zu identifizieren.\nRisikoregister pflegen: Halten Sie ein aktuelles Risikoregister, das alle identifizierten Risiken und Schwachstellen dokumentiert und regelmäßig überprüft wird.\nLernprozesse etablieren: Implementieren Sie Prozesse, um aus Beinaheunfällen zu lernen und entsprechende Maßnahmen zur Risikominderung zu ergreifen.",{"$f":"1/$H$32","v":0.25},null,null,false,null,null,0]
["C6.3","Das SCM-Personal verfügt über das erforderliche Qualifikationsniveau, um Störungen effektiv zu minimieren und darauf zu reagieren.",0.25,null,null,false,null,null,0,"",null,"Weiterbildung fördern: Bieten Sie regelmäßige Schulungen und Weiterbildungsprogramme an, um die Fähigkeiten und Kenntnisse des SCM-Personals zu erweitern.\nZertifizierungen unterstützen: Ermutigen Sie das Personal, relevante Zertifizierungen im Bereich Supply Chain Management und Risikomanagement zu erwerben.\nErfahrungsaustausch ermöglichen: Fördern Sie den Austausch von Best Practices und Erfahrungen innerhalb des Teams und mit externen Experten.",0.25,null,null,false,null,null,0]
["C6.4","Wir steuern Bemühungen des Unternehmens, die Lieferkette nachhaltiger zu gestalten",0.25,null,null,false,null,null,0,"",null,"Nachhaltigkeitsziele setzen: Definieren Sie klare Ziele und KPIs für die Nachhaltigkeit in der Lieferkette.\nLieferanten einbeziehen: Arbeiten Sie eng mit Lieferanten zusammen, um nachhaltige Praktiken entlang der gesamten Lieferkette zu fördern.\nNachhaltigkeitsberichte erstellen: Erstellen Sie regelmäßige Berichte über die Fortschritte und Herausforderungen bei der Umsetzung nachhaltiger Maßnahmen in der Lieferkette.",0.25,null,null,false,null,null,0]
[null,null,null,null,null,null,null,4,{"$f":"SUM(I28:I31)","v":0},null,null,null,null,null,null,null,null,4,{"$f":"SUM(S28:S31)","v":0}]
[null,null,null,null,null,null,null,null,{"$f":"SUM(I7,I13,I18,I26,I32)/5","v":0},null,null,null,null,null,null,null,null,null,{"$f":"SUM(S7,S13,S18,S26,S32)/5","v":0}]
[]
["C1","Risikomanagement-Kultur und Organisation",null,{"$f":"I7","v":0}]
["C2","Finanzierung und Ausstattung",null,{"$f":"I13","v":0}]
["C3","Tools und Technologien",null,{"$f":"I18","v":0}]
["C4","Planung und Simulation",null,{"$f":"I22","v":0}]
["C5","Risikokennzahlen und Strategien",null,{"$f":"I22","v":0}]
["C6","Management und Dokumentation",null,{"$f":"I32","v":0}]
["C","Reifegrad Risikomanagement",null,{"$f":"SUM(D36:D39)/4","v":0}]

{"sheet":"Regionale Lieferketten","index":5,"n_rows":22,"n_cols":19,"rows_kept":22,"cut":false,"hidden":false,"merged":[[1,13,1,18],[6,13,6,18],[11,13,11,18],[0,0,0,1],[17,3,17,8],[1,3,1,8],[6,3,6,8],[11,3,11,8]]}
[null,null,"Gewichtung","Stimme überhaupt nicht zu ","Stimme eher nicht zu","Neutral","Stimme eher zu","Stimme voll zu","Punkte","Mögliche Handlungsoptionen",null,"Handlungsoptionen","Gewichtung","Stimme überhaupt nicht zu ","Stimme eher nicht zu","Neutral","Stimme eher zu","Stimme voll zu","Punkte"]
["D1","Strukturelle und operative Flexibilität"]
["D1.1","Wir verwenden Backup-Standorte oder Multi-Sourcing für kritische Komponenten und Eingaben.",{"$f":"1/$H$6","v":0.33333333333333331},null,null,false,null,null,{"$f":"(IF(D3=TRUE,1,0)+IF(E3=TRUE,2,0)+IF(F3=TRUE,3,0)+IF(G3=TRUE,4,0)+IF(H3=TRUE,5,0))*C3","v":0},{"$f":"IF(OR(D3=TRUE,E3=TRUE),L3,\"\")","v":""},null,"Backup-Standorte etablieren: Richten Sie strategische Backup-Standorte für die Produktion und Lagerung kritischer Komponenten ein, um im Falle eines Ausfalls schnell reagieren zu können.\nMulti-Sourcing nutzen: Diversifizieren Sie Ihre Lieferantenbasis für kritische Eingaben, um Abhängigkeiten zu reduzieren und Ausfallrisiken zu minimieren.\nKontinuierliche Überprüfung: Führen Sie regelmäßig Audits durch, um sicherzustellen, dass Backup-Standorte und Multi-Sourcing-Strategien aktuell und effektiv sind.",{"$f":"1/$H$6","v":0.33333333333333331},null,null,false,null,null,{"$f":"(IF(N3=TRUE,1,0)+IF(O3=TRUE,2,0)+IF(P3=TRUE,3,0)+IF(Q3=TRUE,4,0)+IF(R3=TRUE,5,0))*M3","v":0}]
["D1.2","Wir haben die Flexibilität, mit unseren Lieferanten Bestellmengen, Lieferpläne oder Lieferarten und -routen zu ändern.",{"$f":"1/$H$6","v":0.33333333333333331},null,null,false,null,null,0,{"$f":"IF(OR(D4=TRUE,E4=TRUE),L4,\"\")","v":""},null,"Anpassungsfähigkeit fördern: Entwickeln Sie flexible Bestellmengen und Lieferpläne, um schnell auf Marktveränderungen oder unvorhergesehene Ereignisse reagieren zu können.\nDynamische Logistik implementieren: Optimieren Sie regelmäßig Ihre Lieferprozesse und schaffen Sie alternative Lieferarten und -routen, um Engpässe zu vermeiden.\nAgile Partnerschaften aufbauen: Stärken Sie die Zusammenarbeit mit Ihren Lieferanten, um gemeinsam schnelle Anpassungen und Lösungen für die Lieferkette zu ermöglichen.",{"$f":"1/$H$6","v":0.33333333333333331},null,null,false,null,null,0]
["D1.3","Wir haben Produkte und Dienstleistungen so gestaltet, dass sie die Flexibilität in unserer Lieferkette erhöhen (z. B. verzögerte Differenzierung oder Modularisierung)",0.33333333333333331,null,null,false,null,null,0,"",null,"Verzögerte Differenzierung einsetzen: Gestalten Sie Ihre Produkte so, dass sie erst in einem späteren Fertigungsprozess je nach Bedarf angepasst werden, um auf Änderungen in der Nachfrage flexibler reagieren zu können.\nModularisierung fördern: Entwickeln Sie modulare Produkte, die sich leicht an unterschiedliche Kundenbedürfnisse anpassen lassen, ohne dass die gesamte Lieferkette umgestellt werden muss.\nLieferkette flexibilisieren: Optimieren Sie Ihre Produktions- und Logistikprozesse, um eine schnelle Anpassung an sich ändernde Marktbedingungen oder Lieferengpässe zu ermöglichen.",0.33333333333333331,null,null,false,null,null,0]
[null,null,null,null,null,null,null,3,{"$f":"SUM(I3:I5)","v":0},null,null,null,null,null,null,null,null,3,{"$f":"SUM(S3:S5)","v":0}]
["D2","Nachhaltigkeit und Kreislaufwirtschaft"]
["D2.1","Wir haben Ziele für Lieferanten zur Abfallverwertung und zum Recycling festgelegt.",{"$f":"1/$H$11","v":0.33333333333333331},null,null,false,null,null,{"$f":"(IF(D8=TRUE,1,0)+IF(E8=TRUE,2,0)+IF(F8=TRUE,3,0)+IF(G8=TRUE,4,0)+IF(H8=TRUE,5,0))*C8","v":0},{"$f":"IF(OR(D8=TRUE,E8=TRUE),L8,\"\")","v":""},null,"Abfallverwertungsziele setzen: Definieren Sie klare und messbare Ziele für Ihre Lieferanten hinsichtlich Abfallverwertung und Recycling, um die Nachhaltigkeit entlang der gesamten Lieferkette zu steigern.\nRecyclinganforderungen kommunizieren: Stellen Sie sicher, dass Ihre Lieferanten über spezifische Recyclingvorgaben informiert sind und unterstützen Sie sie bei der Umsetzung dieser Anforderungen.\nKontinuierliche Überprüfung: Führen Sie regelmäßige Audits durch, um sicherzustellen, dass die Abfallverwertungs- und Recyclingziele der Lieferanten eingehalten werden und kontinuierlich verbessert werden.",{"$f":"1/$H$11","v":0.33333333333333331},null,null,false,null,null,{"$f":"(IF(N8=TRUE,1,0)+IF(O8=TRUE,2,0)+IF(P8=TRUE,3,0)+IF(Q8=TRUE,4,0)+IF(R8=TRUE,5,0))*M8","v":0}]
["D2.2","Wir führen ein Produktrücknahmeprogramm zur Rückgewinnung und Wiederverwendung von Materialien aus Produkten, die von Kunden zurückgegeben wurden, durch (z. B. Rücknahmelogistik).",{"$f":"1/$H$11","v":0.33333333333333331},null,null,false,null,null,0,"",null,"Produktrücknahmeprogramm etablieren: Implementieren Sie ein strukturiertes Rücknahmeprogramm, um Materialien aus zurückgegebenen Produkten zu gewinnen und deren Wiederverwendung in der Produktion zu fördern.\nEffiziente Rücknahmelogistik entwickeln: Optimieren Sie die Logistikprozesse für die Rücknahme von Produkten, um den Aufwand zu minimieren und eine kosteneffiziente Rückgewinnung von Materialien sicherzustellen.\nKundentransparenz fördern: Kommunizieren Sie klar mit Ihren Kunden über die Vorteile und den Ablauf des Produktrücknahmeprogramms, um ihre Beteiligung und das Recyclingengagement zu erhöhen.",{"$f":"1/$H$11","v":0.33333333333333331},null,null,false,null,null,0]
["D2.3","Wir haben Partnerschaften mit anderen Organisationen, um Initiativen zur zirkulären Lieferkette voranzutreiben (z. B. Bereitstellung von Abfallmaterialien für eine andere Organisation zur Wiederverwendung).",0.33333333333333331,null,null,false,null,null,0,"",null,"Zirkuläre Partnerschaften aufbauen: Kooperieren Sie mit anderen Organisationen, um Abfallmaterialien auszutauschen und diese für die Wiederverwendung in deren Produktionsprozessen bereitzustellen.\nGemeinsame Initiativen entwickeln: Arbeiten Sie mit Partnern an gemeinsamen Projekten zur Förderung einer zirkulären Wirtschaft, indem Abfall als wertvolle Ressource genutzt wird.\nWertschöpfung durch Zusammenarbeit: Fördern Sie den Austausch von Best Practices und Technologien, um die Effizienz der zirkulären Lieferkette zu maximieren und den Materialkreislauf zu schließen.",0.33333333333333331,null,null,false,null,null,0]
[null,null,null,null,null,null,null,3,{"$f":"SUM(I8:I10)","v":0},null,null,null,null,null,null,null,null,3,{"$f":"SUM(S8:S10)","v":0}]
["D3","Regionale Anpassungen und Reshoring"]
["D3.1","Wir haben unsere Lieferkette neu ausbalanciert, um die Widerstandsfähigkeit durch Reshoring, Nearshoring oder Regionalisierung des Fußabdrucks unserer Lieferkette zu erhöhen.",{"$f":"1/$H$16","v":0.33333333333333331},null,null,false,null,null,{"$f":"(IF(D13=TRUE,1,0)+IF(E13=TRUE,2,0)+IF(F13=TRUE,3,0)+IF(G13=TRUE,4,0)+IF(H13=TRUE,5,0))*C13","v":0},{"$f":"IF(OR(D13=TRUE,E13=TRUE),L13,\"\")","v":""},null,"Reshoring umsetzen: Bringen Sie Teile der Produktion zurück in heimische Märkte, um die Abhängigkeit von fernen, risikobehafteten Lieferanten zu verringern und die Kontrolle über die Lieferkette zu stärken.\nNearshoring fördern: Verlagern Sie Produktionskapazitäten näher an den Zielmarkt, um Transportkosten zu senken, Lieferzeiten zu verkürzen und das Risiko von Störungen zu minimieren.\nRegionalisierung vorantreiben: Optimieren Sie die geografische Ausrichtung Ihrer Lieferkette, indem Sie regionale Lieferquellen und Fertigungsstandorte nutzen, um die Flexibilität und Resilienz zu erhöhen.",{"$f":"1/$H$16","v":0.33333333333333331},null,null,false,null,null,{"$f":"(IF(N13=TRUE,1,0)+IF(O13=TRUE,2,0)+IF(P13=TRUE,3,0)+IF(Q13=TRUE,4,0)+IF(R13=TRUE,5,0))*M13","v":0}]
["D3.2","Wir haben Lager- oder Distributionszentren näher an den Endmärkten eingerichtet.",{"$f":"1/$H$16","v":0.33333333333333331},null,null,false,null,null,0,"",null,"Lagerzentren näher an Endmärkten: Richten Sie Lager- oder Distributionszentren strategisch näher an den Zielmärkten ein, um Lieferzeiten zu verkürzen und die Reaktionsfähigkeit auf Marktveränderungen zu erhöhen.\nOptimierung der Lieferkette: Reduzieren Sie Transportkosten und -zeiten, indem Sie regionale Lagerstrategien implementieren, die den Bedarf an langen Lieferwegen minimieren.\nFlexibilität erhöhen: Schaffen Sie durch dezentrale Lagerung die Möglichkeit, schneller auf Nachfrageschwankungen und unvorhergesehene Ereignisse zu reagieren, und steigern Sie so die Widerstandsfähigkeit der Lieferkette.\nTransparenz fördern: Regelmäßige Updates und Visualisierungen des Liefernetzwerks bereitstellen, um Transparenz zu gewährleisten.\nRisikoanalyse durchführen: Identifikation und Bewertung potenzieller Risiken innerhalb des gesamten Liefernetzwerks.",{"$f":"1/$H$16","v":0.33333333333333331},null,null,false,null,null,0]
["D3.3","Wir haben die Komplexität unseres Produktportfolios verringert und die Anzahl der SKUs in unserer Lieferkette reduziert.",0.33333333333333331,null,null,false,null,null,0,"",null,"Portfoliovereinfachung: Reduzieren Sie die Anzahl der Produkte und SKUs, um die Komplexität in der Lieferkette zu verringern und die Effizienz in Produktion und Logistik zu steigern.\nStandardisierung fördern: Setzen Sie auf standardisierte Komponenten und Varianten, um die Beschaffung und Lagerhaltung zu vereinfachen und Kosten zu senken.\nProzessoptimierung: Überprüfen und rationalisieren Sie regelmäßig das Produktportfolio, um nur noch die rentabelsten und nachfragestärksten SKUs beizubehalten, was zu einer flexibleren und widerstandsfähigeren Lieferkette führt.",0.33333333333333331,null,null,false,null,null,0]
[null,null,null,null,null,null,null,3,{"$f":"SUM(I13:I15)","v":0},null,null,null,null,null,null,null,null,3,{"$f":"SUM(S13:S15)","v":0}]
[null,null,null,null,null,null,null,null,{"$f":"SUM(I6,I11,I16)/3","v":0},null,null,null,null,null,null,null,null,null,{"$f":"SUM(S6,S11,S16)/3","v":0}]
[]
["D1","Strukturelle und operative Flexibilität",null,{"$f":"I6","v":0}]
["D2","Nachhaltigkeit und Kreislaufwirtschaft",null,{"$f":"I11","v":0}]
["D3","Regionale Anpassungen und Reshoring",null,{"$f":"I16","v":0}]
["D","Reifegrad Regionale Lieferketten",null,{"$f":"SUM(D19:D21)/3","v":0}]

{"sheet":"Globale Lieferketten","index":6,"n_rows":24,"n_cols":19,"rows_kept":24,"cut":false,"hidden":false,"merged":[[19,3,19,8],[1,13,1,18],[6,13,6,18],[12,13,12,18],[0,0,0,1],[1,3,1,8],[6,3,6,8],[12,3,12,8]]}
[null,null,"Gewichtung","Stimme überhaupt nicht zu ","Stimme eher nicht zu","Neutral","Stimme eher zu","Stimme voll zu","Punkte","Mögliche Handlungsoptionen",null,"Handlungsoptionen","Gewichtung","Stimme überhaupt nicht zu ","Stimme eher nicht zu","Neutral","Stimme eher zu","Stimme voll zu","Punkte"]
["E1","Anpassungsfähigkeit"]
["E1.1","Wir reagieren dynamisch auf strukturelle Veränderungen und Marktverschiebungen und passen uns schnell an, um Wettbewerbsvorteile zu erzielen und eine unterbrechungsfreie Versorgung zu gewährleisten.",{"$f":"1/$H$6","v":0.33333333333333331},null,null,false,null,null,{"$f":"(IF(D3=TRUE,1,0)+IF(E3=TRUE,2,0)+IF(F3=TRUE,3,0)+IF(G3=TRUE,4,0)+IF(H3=TRUE,5,0))*C3","v":0},{"$f":"IF(OR(D3=TRUE,E3=TRUE),L3,\"\")","v":""},null,"Dynamische Anpassung: Etablieren Sie flexible Prozesse, um schnell auf strukturelle Veränderungen und Marktverschiebungen zu reagieren und die Geschäftstätigkeit kontinuierlich anzupassen.\nWettbewerbsvorteile sichern: Nutzen Sie Marktveränderungen als Chance, innovative Lösungen zu entwickeln und die Position gegenüber Mitbewerbern zu stärken.\nResiliente Versorgungskette: Implementieren Sie agile Strategien und Frühwarnsysteme, um eine unterbrechungsfreie Versorgung sicherzustellen und Engpässe in der Lieferkette schnell zu überwinden.",{"$f":"1/$H$6","v":0.33333333333333331},null,null,false,null,null,{"$f":"(IF(N3=TRUE,1,0)+IF(O3=TRUE,2,0)+IF(P3=TRUE,3,0)+IF(Q3=TRUE,4,0)+IF(R3=TRUE,5,0))*M3","v":0}]
["E1.2","Unsere Supply-Chain-Prozesse und -Kultur ermöglichen eine schnelle Entscheidungsfindung und eine schnelle Umsetzung entsprechender Veränderungen in der Supply Chain.",{"$f":"1/$H$6","v":0.33333333333333331},null,null,false,null,null,0,{"$f":"IF(OR(D4=TRUE,E4=TRUE),L4,\"\")","v":""},null,"Schnelle Entscheidungsfindung fördern: Etablieren Sie eine dezentralisierte Entscheidungsstruktur, die es Teams ermöglicht, schnell auf Veränderungen zu reagieren und Entscheidungen ohne bürokratische Hürden zu treffen.\nAgile Kultur aufbauen: Fördern Sie eine Unternehmenskultur, die auf Flexibilität, kontinuierlicher Verbesserung und schnellem Handeln basiert, um in dynamischen Märkten wettbewerbsfähig zu bleiben.\nProzessoptimierung: Implementieren Sie automatisierte Systeme und klare Kommunikationskanäle, um Veränderungen effizient zu managen und die Umsetzung von Anpassungen in der Lieferkette zu beschleunigen.",{"$f":"1/$H$6","v":0.33333333333333331},null,null,false,null,null,0]
["E1.3","Bei Bedarf verkürzen wir die Planungszyklen, um Nachfragesignale zu verstehen und schneller darauf reagieren zu können.",0.33333333333333331,null,null,false,null,null,0,"",null,"Planungszyklen verkürzen: Reduzieren Sie die Planungszyklen, um schneller auf Veränderungen in der Nachfrage reagieren zu können und so flexibler auf Marktbedingungen zu reagieren.\nNachfragesignale frühzeitig erfassen: Implementieren Sie fortschrittliche Analysetools, um Nachfragesignale in Echtzeit zu erkennen und darauf basierend schnelle Entscheidungen zu treffen.\nAgilität steigern: Fördern Sie eine agile Planungskultur, die es ermöglicht, schnell auf schwankende Marktanforderungen zu reagieren und die Lieferkette entsprechend anzupassen.",0.33333333333333331,null,null,false,null,null,0]
[null,null,null,null,null,null,null,3,{"$f":"SUM(I3:I5)","v":0},null,null,null,null,null,null,null,null,3,{"$f":"SUM(S3:S5)","v":0}]
["E2","Nachhaltigkeit und Klimawandel"]
["E2.1","Wir führen Szenarioanalysen oder Simulationen durch, um zu beurteilen, wie sich der Klimawandel auf unser Unternehmen auswirken wird.",{"$f":"1/$H$12","v":0.25},null,null,false,null,null,{"$f":"(IF(D8=TRUE,1,0)+IF(E8=TRUE,2,0)+IF(F8=TRUE,3,0)+IF(G8=TRUE,4,0)+IF(H8=TRUE,5,0))*C8","v":0},{"$f":"IF(OR(D8=TRUE,E8=TRUE),L8,\"\")","v":""},null,"Szenarioanalysen durchführen: Führen Sie regelmäßige Szenarioanalysen durch, um verschiedene Klimarisiken zu simulieren und deren potenzielle Auswirkungen auf Ihr Unternehmen zu bewerten.\nKlimarisiken simulieren: Nutzen Sie Simulationstools, um die Auswirkungen von extremen Wetterereignissen, Ressourcenknappheit oder regulatorischen Änderungen auf die Lieferkette und Geschäftsabläufe abzuschätzen.\nAnpassungsstrategien entwickeln: Erarbeiten Sie auf Basis der Szenarioergebnisse gezielte Anpassungsstrategien, um die Resilienz Ihres Unternehmens gegenüber den Folgen des Klimawandels zu stärken.",{"$f":"1/$H$12","v":0.25},null,null,false,null,null,{"$f":"(IF(N8=TRUE,1,0)+IF(O8=TRUE,2,0)+IF(P8=TRUE,3,0)+IF(Q8=TRUE,4,0)+IF(R8=TRUE,5,0))*M8","v":0}]
["E2.2","Wir bewerten, wie sich der Klimawandel auf unsere Lieferanten auswirken wird.",{"$f":"1/$H$12","v":0.25},null,null,false,null,null,0,"",null,"Klimarisiken bei Lieferanten bewerten: Analysieren Sie, wie der Klimawandel die Betriebsfähigkeit und Lieferfähigkeit Ihrer Lieferanten beeinflussen könnte, insbesondere in Bezug auf extreme Wetterereignisse und Ressourcenknappheit.\nRisikomanagementstrategien entwickeln: Erarbeiten Sie Strategien zur Minderung von Risiken, die durch klimatische Veränderungen bei Ihren Lieferanten entstehen könnten, z. B. durch Diversifikation oder die Wahl widerstandsfähigerer Lieferanten.\nKooperation und Unterstützung: Arbeiten Sie eng mit Ihren Lieferanten zusammen, um deren Klimaanpassungsstrategien zu verstehen und sie bei der Umsetzung nachhaltiger Maßnahmen zu unterstützen, die langfristige Lieferkettenstabilität sichern.",{"$f":"1/$H$12","v":0.25},null,null,false,null,null,0]
["E2.3","Wir bewerten, wie sich die CO2-Bepreisung (z. B. eine Kohlenstoffsteuer oder ein Cap-and-Trade-System) auf unser Unternehmen und unsere Lieferkette auswirken würde.",0.25,null,null,false,null,null,0,"",null,"CO2-Bepreisung analysieren: Bewerten Sie die potenziellen Auswirkungen von CO2-Bepreisungsmechanismen wie Kohlenstoffsteuern oder Cap-and-Trade-Systemen auf Ihre Produktionskosten und die gesamte Lieferkette.\nRisiken und Chancen identifizieren: Identifizieren Sie, wie die CO2-Bepreisung Ihre Wettbewerbsfähigkeit, Lieferantenkosten und die Preisgestaltung beeinflussen könnte, und entwickeln Sie Strategien zur Minimierung der finanziellen Belastungen.\nAnpassungsstrategien entwickeln: Erarbeiten Sie Maßnahmen, um sich proaktiv auf CO2-Bepreisungsmaßnahmen vorzubereiten, wie z. B. die Optimierung von Produktionsprozessen, den Einsatz von erneuerbaren Energien oder die Förderung von CO2-armen Technologien in Ihrer Lieferkette.",0.25,null,null,false,null,null,0]
["E2.4","Wir bewerten, wie sich der Klimawandel auf unsere Kunden und ihre Gemeinden auswirken wird.",0.25,null,null,false,null,null,0,"",null,"Klimawirkungen analysieren: Bewerten Sie die potenziellen Auswirkungen des Klimawandels auf Ihre Kunden und deren Gemeinden, insbesondere in Bezug auf extreme Wetterereignisse, Ressourcenverfügbarkeit und lokale Infrastruktur.\nAnpassungsstrategien entwickeln: Entwickeln Sie maßgeschneiderte Lösungen, die Ihre Kunden und deren Gemeinden dabei unterstützen, sich an die klimatischen Veränderungen anzupassen und resilienter zu werden.\nKollaboration stärken: Arbeiten Sie eng mit Ihren Kunden und lokalen Gemeinschaften zusammen, um nachhaltige, langfristige Strategien zur Minderung von Klimarisiken zu entwickeln und umzusetzen.",0.25,null,null,false,null,null,0]
[null,null,null,null,null,null,null,4,{"$f":"SUM(I8:I11)","v":0},null,null,null,null,null,null,null,null,4,{"$f":"SUM(S8:S11)","v":0}]
["E3","Ethik"]
["E3.1","Wir verpflichten unsere Lieferanten, einen Verhaltenskodex für den ethischen Umgang mit der Belegschaft zu verabschieden.",{"$f":"1/$H$18","v":0.25},null,null,false,null,null,{"$f":"(IF(D14=TRUE,1,0)+IF(E14=TRUE,2,0)+IF(F14=TRUE,3,0)+IF(G14=TRUE,4,0)+IF(H14=TRUE,5,0))*C14","v":0},{"$f":"IF(OR(D14=TRUE,E14=TRUE),L14,\"\")","v":""},null,"Verhaltenskodex einführen: Verlangen Sie von Ihren Lieferanten, einen klaren Verhaltenskodex zu verabschieden, der ethische Standards für den Umgang mit der Belegschaft festlegt, einschließlich Arbeitsbedingungen, Gleichbehandlung und Arbeitnehmerrechten.\nEthische Audits durchführen: Führen Sie regelmäßige Audits durch, um sicherzustellen, dass Ihre Lieferanten den Verhaltenskodex einhalten und ethische Praktiken in der Arbeitswelt fördern.\nSchulung und Unterstützung bieten: Bieten Sie Schulungen und Unterstützung an, um Ihre Lieferanten bei der Implementierung und Einhaltung des Verhaltenskodex zu unterstützen und eine langfristige ethische Zusammenarbeit sicherzustellen.",{"$f":"1/$H$18","v":0.25},null,null,false,null,null,{"$f":"(IF(N14=TRUE,1,0)+IF(O14=TRUE,2,0)+IF(P14=TRUE,3,0)+IF(Q14=TRUE,4,0)+IF(R14=TRUE,5,0))*M14","v":0}]
["E3.2","Wir überwachen und auditieren unsere Lieferanten zur Einhaltung der Anforderungen an die soziale Verantwortung.",{"$f":"1/$H$18","v":0.25},null,null,false,null,null,0,"",null,"Überwachungssystem implementieren: Etablieren Sie ein robustes System zur regelmäßigen Überwachung der Lieferanten, um sicherzustellen, dass alle Anforderungen an die soziale Verantwortung, wie faire Arbeitsbedingungen und Rechte der Arbeitnehmer, eingehalten werden.\nLieferantenaudits durchführen: Führen Sie regelmäßige, unabhängige Audits durch, um die Einhaltung sozialer Standards zu überprüfen und gegebenenfalls Verbesserungsmaßnahmen zu ergreifen.\nZusammenarbeit und Unterstützung: Arbeiten Sie eng mit Ihren Lieferanten zusammen, um ihnen bei der Erfüllung der sozialen Verantwortung zu helfen und sicherzustellen, dass sie die festgelegten Standards kontinuierlich umsetzen.",{"$f":"1/$H$18","v":0.25},null,null,false,null,null,0]
["E3.3","Wir setzen Partnerschaften mit Lieferanten aus oder beenden sie, wenn diese sich nicht an die Standards für den ethischen Umgang mit ihrer Belegschaft halten.",0.25,null,null,false,null,null,0,"",null,"Partnerschaften evaluieren: Überprüfen Sie regelmäßig die Einhaltung der ethischen Standards durch Ihre Lieferanten und ziehen Sie Konsequenzen, wenn diese Standards nicht erfüllt werden.\nMaßnahmen bei Verstößen: Setzen Sie klare Richtlinien, dass Partnerschaften mit Lieferanten, die wiederholt gegen die ethischen Anforderungen verstoßen, ausgesetzt oder beendet werden, um die Integrität Ihrer Lieferkette zu wahren.\nTransparenz und Kommunikation: Kommunizieren Sie offen mit den betroffenen Lieferanten und bieten Sie ihnen Unterstützung an, um Verbesserungen zu erzielen, bevor eine endgültige Entscheidung getroffen wird.",0.25,null,null,false,null,null,0]
["E3.4","Wir haben keine Abhängigkeiten oder Schwachstellen, die auf einer Konzentration kritischer Lieferanten in einem einzigen Land oder einer einzigen Region basieren.",0.25,null,null,false,null,null,0,"",null,"Diversifizierung der Lieferantenbasis: Stellen Sie sicher, dass Ihre Lieferkette auf mehrere Lieferanten in verschiedenen Ländern und Regionen verteilt ist, um Abhängigkeiten von einzelnen Märkten zu vermeiden.\nRegionale Resilienz stärken: Reduzieren Sie das Risiko von Störungen, indem Sie Lieferanten in verschiedenen geografischen Regionen auswählen, die weniger anfällig für lokale Krisen oder geopolitische Instabilität sind.\nAlternative Beschaffungsstrategien entwickeln: Entwickeln Sie Strategien zur schnellen Umstellung auf alternative Lieferquellen oder -regionen, falls Engpässe auftreten, um die Flexibilität und Resilienz der Lieferkette zu gewährleisten.",0.25,null,null,false,null,null,0]
[null,null,null,null,null,null,null,4,{"$f":"SUM(I14:I17)","v":0},null,null,null,null,null,null,null,null,4,{"$f":"SUM(S14:S17)","v":0}]
[null,null,null,null,null,null,null,null,{"$f":"SUM(I6,I12,I18)/3","v":0},null,null,null,null,null,null,null,null,null,{"$f":"SUM(S6,S12,S18)/3","v":0}]
[]
["E1","Anpassungsfähigkeit",null,{"$f":"I6","v":0}]
["E2","Nachhaltigkeit und Klimawandel",null,{"$f":"I12","v":0}]
["E3","Ethik",null,{"$f":"I18","v":0}]
["E","Reifegrad Globale Lieferketten",null,{"$f":"SUM(D21:D23)/3","v":0}]

{"sheet":"Innovationsmanagement","index":7,"n_rows":30,"n_cols":19,"rows_kept":30,"cut":false,"hidden":false,"merged":[[0,0,0,1],[1,3,1,8],[8,3,8,8],[16,3,16,8],[1,13,1,18],[8,13,8,18],[16,13,16,18]]}
[null,null,"Gewichtung","Stimme überhaupt nicht zu ","Stimme eher nicht zu","Neutral","Stimme eher zu","Stimme voll zu","Punkte","Mögliche Handlungsoptionen",null,"Handlungsoptionen","Gewichtung","Stimme überhaupt nicht zu ","Stimme eher nicht zu","Neutral","Stimme eher zu","Stimme voll zu","Punkte"]
["F1","Datenanalyse und Frühwarnsysteme"]
["F1.1","Wir verwenden KI-gestützte prädiktive Analysen, um interne Unternehmensdaten und externe Daten (einschließlich Wettervorhersagen, soziale Medien und Markttrends oder Point-of-Sale-Daten) zu analysieren, um Bedrohungen zu erkennen und Frühwarnungen in Echtzeit bereitzustellen.",{"$f":"1/$H$8","v":0.2},null,null,false,null,null,{"$f":"(IF(D3=TRUE,1,0)+IF(E3=TRUE,2,0)+IF(F3=TRUE,3,0)+IF(G3=TRUE,4,0)+IF(H3=TRUE,5,0))*C3","v":0},{"$f":"IF(OR(D3=TRUE,E3=TRUE),L3,\"\")","v":""},null,"KI-gestützte Frühwarnsysteme implementieren: Setzen Sie KI-Tools ein, die interne und externe Daten in Echtzeit analysieren, um potenzielle Bedrohungen wie Lieferengpässe, Marktveränderungen oder Naturkatastrophen frühzeitig zu erkennen.\nDatenintegration optimieren: Integrieren Sie verschiedene Datenquellen, wie Wettervorhersagen, soziale Medien und Verkaufsdaten, um ein umfassendes Bild von potenziellen Risiken und Chancen in der Lieferkette zu erhalten.\nProaktive Entscheidungsfindung fördern: Nutzen Sie die Erkenntnisse aus prädiktiven Analysen, um fundierte, proaktive Entscheidungen zu treffen, die die Resilienz des Unternehmens stärken und schnell auf aufkommende Bedrohungen reagieren zu können.",{"$f":"1/$H$8","v":0.2},null,null,false,null,null,{"$f":"(IF(N3=TRUE,1,0)+IF(O3=TRUE,2,0)+IF(P3=TRUE,3,0)+IF(Q3=TRUE,4,0)+IF(R3=TRUE,5,0))*M3","v":0}]
["F1.2","Wir nutzen die Szenarioanalyse, um die strategischen Auswirkungen von Risiken auf unser Unternehmen über längere Zeithorizonte zu verstehen.",{"$f":"1/$H$8","v":0.2},null,null,false,null,null,0,{"$f":"IF(OR(D4=TRUE,E4=TRUE),L4,\"\")","v":""},null,"Langfristige Risikoszenarien entwickeln: Nutzen Sie Szenarioanalysen, um potenzielle Risiken und deren Auswirkungen auf Ihr Unternehmen über verschiedene Zeiträume hinweg zu simulieren und strategische Handlungsoptionen zu entwickeln.\nZukunftsorientierte Planung: Berücksichtigen Sie in Ihren Szenarioanalysen verschiedene externe Faktoren, wie wirtschaftliche, gesellschaftliche oder klimatische Veränderungen, um langfristige, resiliente Geschäftsstrategien zu formulieren.\nEntscheidungsfindung auf Datenbasis: Verwenden Sie die Ergebnisse der Szenarioanalyse, um fundierte, zukunftsorientierte Entscheidungen zu treffen, die Ihr Unternehmen auf mögliche Risiken vorbereiten und die Wettbewerbsfähigkeit langfristig sichern.",{"$f":"1/$H$8","v":0.2},null,null,false,null,null,0]
["F1.3","Unser Unternehmen zeichnet sich dadurch aus, dass es Störungen erkennt, lange bevor sie sich auf unsere Lieferkette auswirken.",0.2,null,null,false,null,null,0,"",null,"Frühzeitige Risikoerkennung implementieren: Setzen Sie fortschrittliche Analysetools und Frühwarnsysteme ein, die potenzielle Störungen in der Lieferkette frühzeitig identifizieren, noch bevor sie größere Auswirkungen haben.\nProaktive Überwachung: Überwachen Sie kontinuierlich sowohl interne als auch externe Faktoren, wie Markttrends, geopolitische Ereignisse oder Naturkatastrophen, um Anzeichen von möglichen Störungen schnell zu erkennen.\nSchnelle Reaktionsmechanismen entwickeln: Etablieren Sie schnelle, flexible Reaktionsstrategien, um bei einer identifizierten Bedrohung sofort Maßnahmen zu ergreifen und die Auswirkungen auf die Lieferkette zu minimieren.",0.2,null,null,false,null,null,0]
["F1.5","Wir haben unsere Lieferkette einem Stresstest unterzogen, indem wir ein Modell, einen digitalen Zwilling oder eine Simulation unserer Lieferkette verwendet haben, um zu verstehen, wie unsere Lieferkette unter extremen Umständen reagieren würde, oder um Schwachstellen zu identifizieren.",0.2,null,null,false,null,null,0,"",null,"Stresstests durchführen: Nutzen Sie digitale Zwillinge oder Simulationen, um Ihre Lieferkette unter extremen Bedingungen zu testen und herauszufinden, wie sie auf verschiedene Krisenszenarien reagieren würde.\nSchwachstellen identifizieren: Analysieren Sie die Ergebnisse der Simulationen, um Schwachstellen oder Engpässe in der Lieferkette zu erkennen, die unter Druck zu Unterbrechungen führen könnten.\nResilienzstrategien entwickeln: Basierend auf den Testergebnissen entwickeln Sie gezielte Maßnahmen und Anpassungen, um die Widerstandsfähigkeit Ihrer Lieferkette zu erhöhen und Risiken langfristig zu minimieren.",0.2,null,null,false,null,null,0]
["F1.6","Wir überwachen Risiken im Zusammenhang mit früheren Störungen, die wir erlebt haben, und Warnungen, die von Regierungen oder in den Medien hervorgehoben wurden.",0.2,null,null,false,null,null,0,"",null,"Risikomonitoring etablieren: Implementieren Sie ein kontinuierliches System zur Überwachung von Risiken, die aus früheren Störungen resultieren, sowie von neuen Warnungen und Bedrohungen, die von Regierungen oder in den Medien hervorgehoben werden.\nFrühwarnsysteme nutzen: Verknüpfen Sie aktuelle Nachrichtenquellen, Regierungshinweise und historische Daten, um proaktive Maßnahmen zur Minderung potenzieller Risiken zu entwickeln und frühzeitig auf kommende Störungen reagieren zu können.\nDatenanalysen intensivieren: Verwenden Sie prädiktive Analysen und Big Data, um Trends aus vergangenen Ereignissen zu erkennen und so zukünftige Risiken besser einzuschätzen und zu vermeiden.",0.2,null,null,false,null,null,0]
[null,null,null,null,null,null,null,5,{"$f":"SUM(I3:I7)","v":0},null,null,null,null,null,null,null,null,5,{"$f":"SUM(S3:S7)","v":0}]
["F2","Kundenorientierung und Produktentwicklung"]
["F2.1","Wir haben ein ausgeprägtes Verständnis für die Erwartungen unserer Kunden.",{"$f":"1/$H$16","v":0.16666666666666666},null,null,false,null,null,{"$f":"(IF(D10=TRUE,1,0)+IF(E10=TRUE,2,0)+IF(F10=TRUE,3,0)+IF(G10=TRUE,4,0)+IF(H10=TRUE,5,0))*C10","v":0},{"$f":"IF(OR(D10=TRUE,E10=TRUE),L10,\"\")","v":""},null,"Kundenfeedback aktiv einholen: Etablieren Sie regelmäßige Feedback-Mechanismen, wie Umfragen oder Interviews, um ein tiefgehendes Verständnis für die Bedürfnisse und Erwartungen Ihrer Kunden zu gewinnen.\nMarktforschung betreiben: Nutzen Sie Marktforschung und Datenanalyse, um aktuelle Trends und sich verändernde Kundenbedürfnisse frühzeitig zu erkennen und Ihr Angebot entsprechend anzupassen.\nKundenzentrierte Kultur fördern: Schaffen Sie eine Unternehmenskultur, die auf Kundenzufriedenheit und -erwartungen ausgerichtet ist, und integrieren Sie dieses Wissen in die Entscheidungsprozesse und Produktentwicklung.",{"$f":"1/$H$16","v":0.16666666666666666},null,null,false,null,null,{"$f":"(IF(N10=TRUE,1,0)+IF(O10=TRUE,2,0)+IF(P10=TRUE,3,0)+IF(Q10=TRUE,4,0)+IF(R10=TRUE,5,0))*M10","v":0}]
["F2.2","Wir bieten unseren Kunden ein hohes Maß an Individualisierung.",{"$f":"1/$H$16","v":0.16666666666666666},null,null,false,null,null,0,"",null,"Individuelle Lösungen entwickeln: Bieten Sie maßgeschneiderte Produkte oder Dienstleistungen an, die auf die spezifischen Bedürfnisse und Wünsche Ihrer Kunden zugeschnitten sind.\nFlexible Anpassungsoptionen bieten: Ermöglichen Sie es Kunden, Produkte oder Dienstleistungen nach ihren persönlichen Vorlieben und Anforderungen zu konfigurieren, sei es durch Design, Funktionalität oder Serviceoptionen.\nKundenorientierte Prozesse etablieren: Implementieren Sie flexible Produktions- und Lieferprozesse, die es Ihrem Unternehmen ermöglichen, schnell auf individuelle Kundenwünsche zu reagieren und gleichzeitig die Qualität und Effizienz zu gewährleisten.",{"$f":"1/$H$16","v":0.16666666666666666},null,null,false,null,null,0]
["F2.3","Unsere Kunden haben unserer Marke in den letzten 12 Monaten die Treue gehalten.",0.16666666666666666,null,null,false,null,null,0,"",null,"Kundenzufriedenheit messen: Führen Sie regelmäßige Umfragen und Analysen durch, um sicherzustellen, dass die Zufriedenheit und Bindung Ihrer Kunden konstant hoch bleibt.\nLoyalitätsprogramme entwickeln: Bieten Sie Belohnungen und Anreize, um die Markenbindung zu stärken und die Treue Ihrer Kunden langfristig zu fördern.\nKundenbindung durch Mehrwert steigern: Stellen Sie sicher, dass Ihre Produkte oder Dienstleistungen kontinuierlich einen klaren Mehrwert bieten, der die Bedürfnisse und Erwartungen Ihrer Kunden übertrifft und ihre langfristige Treue sichert.",0.16666666666666666,null,null,false,null,null,0]
["F2.4","Wir haben eine kurze Produktentwicklungszykluszeit und können neue Produkte schneller auf den Markt bringen als unsere Wettbewerber.",0.16666666666666666,null,null,false,null,null,0,"",null,"Liquidität: Berechnet als (Umlaufvermögen - Vorräte) / kurzfristige Verbindlichkeiten. \nKapitalrendite: Prozentuale Veränderung der Kapitalrendite Ihres Unternehmens seit dem letzten Jahr. \nOperative Marge: Prozentuale Veränderung der operativen Marge Ihres Unternehmens seit dem letzten Jahr.",0.16666666666666666,null,null,false,null,null,0]
["F2.5","Wir haben neue Produkte oder Dienstleistungen entwickelt, um Abhängigkeiten oder Schwachstellen in der Lieferkette zu vermeiden (z. B. Abhängigkeit von Seltenen Erden).",0.16666666666666666,null,null,false,null,null,0,"",null,"Agile Produktentwicklung: Implementieren Sie agile Methoden in der Produktentwicklung, um schnelle Anpassungen und Iterationen zu ermöglichen und die Markteinführungszeit zu verkürzen.\nCross-funktionale Teams nutzen: Fördern Sie die Zusammenarbeit zwischen verschiedenen Abteilungen (wie Forschung, Entwicklung, Marketing und Produktion), um die Effizienz zu steigern und die Produktentwicklung zu beschleunigen.\nInnovationsmanagement optimieren: Setzen Sie auf kontinuierliche Marktbeobachtung und Kundenfeedback, um neue Produkte schnell zu validieren und gezielt auf die Bedürfnisse der Zielgruppe abzustimmen.",0.16666666666666666,null,null,false,null,null,0]
["F2.6","Wir haben Lieferanten oder Kunden in die Planungsaktivitäten des Risikomanagements einbezogen.",0.16666666666666666,null,null,false,null,null,0,"",null,"Kooperative Risikoplanung: Integrieren Sie Lieferanten und Kunden in den Risikomanagementprozess, indem Sie regelmäßig gemeinsame Planungsworkshops und Risikoanalysen durchführen, um potenzielle Störungen frühzeitig zu identifizieren.\nTransparente Kommunikation: Fördern Sie einen offenen Dialog mit Lieferanten und Kunden über Risiken und Notfallpläne, um sicherzustellen, dass alle Beteiligten gut vorbereitet sind und gemeinsam Lösungen entwickeln können.\nGemeinsame Risikomanagementstrategien: Entwickeln Sie gemeinsam mit Ihren Partnern Strategien zur Risikominimierung und Notfallbewältigung, die die gesamte Lieferkette abdecken und eine schnelle Reaktion auf unerwartete Ereignisse ermöglichen.",0.16666666666666666,null,null,false,null,null,0]
[null,null,null,null,null,null,null,6,{"$f":"SUM(I10:I15)","v":0},null,null,null,null,null,null,null,null,6,{"$f":"SUM(S10:S15)","v":0}]
["F3","Innovative Lösungen und Technologien"]
["F3.1","Wir verwenden präskriptive Analysen mit fortschrittlicher Supply-Chain-Modellierung, die eine schnelle Entscheidungsfindung und ein tieferes Verständnis und eine tiefere Kontrolle der Lieferkette ermöglichen.",{"$f":"1/$H$24","v":0.16666666666666666},null,null,false,null,null,{"$f":"(IF(D18=TRUE,1,0)+IF(E18=TRUE,2,0)+IF(F18=TRUE,3,0)+IF(G18=TRUE,4,0)+IF(H18=TRUE,5,0))*C18","v":0},{"$f":"IF(OR(D18=TRUE,E18=TRUE),L18,\"\")","v":""},null,"Präskriptive Analysen einsetzen: Nutzen Sie präskriptive Analysen, um optimale Handlungsoptionen zu identifizieren und Entscheidungen in Echtzeit zu treffen, die auf fundierten Daten und Vorhersagen basieren.\nFortschrittliche Modellierung verwenden: Implementieren Sie fortschrittliche Supply-Chain-Modelle, die es Ihnen ermöglichen, Szenarien zu simulieren und die Auswirkungen verschiedener Entscheidungen auf die gesamte Lieferkette zu verstehen.\nKontrolle und Transparenz erhöhen: Durch die Integration präskriptiver Analysen erhalten Sie eine bessere Kontrolle über Ihre Lieferkette und können schnell auf Veränderungen reagieren, um Engpässe zu vermeiden und Effizienz zu maximieren.",{"$f":"1/$H$24","v":0.16666666666666666},null,null,false,null,null,{"$f":"(IF(N18=TRUE,1,0)+IF(O18=TRUE,2,0)+IF(P18=TRUE,3,0)+IF(Q18=TRUE,4,0)+IF(R18=TRUE,5,0))*M18","v":0}]
["F3.2","Wir nutzen Supply Chain Control Towers, um eine durchgängige Transparenz der Lieferkette zu erhalten.",{"$f":"1/$H$24","v":0.16666666666666666},null,null,false,null,null,0,"",null,"Transparenz durch Control Towers: Implementieren Sie Supply Chain Control Towers, die in Echtzeit Daten aus verschiedenen Quellen bündeln und so eine umfassende Übersicht über alle Lieferkettenprozesse bieten.\nProaktive Überwachung: Nutzen Sie Control Towers, um potenzielle Störungen oder Verzögerungen frühzeitig zu erkennen und sofortige Korrekturmaßnahmen zu ergreifen, bevor sie sich negativ auf die Lieferkette auswirken.\nDatenbasierte Entscheidungen: Mit der vollständigen Transparenz aus den Control Towers können Sie fundierte, schnelle Entscheidungen treffen und die Effizienz sowie Resilienz Ihrer Lieferkette kontinuierlich verbessern.",{"$f":"1/$H$24","v":0.16666666666666666},null,null,false,null,null,0]
["F3.3","Wir managen den Wandel proaktiv und mobilisieren Unterstützung und Unterstützung von allen Ebenen bei der Einführung von Innovationen in der Lieferkette (z. B. starkes Change Management für die digitale Transformation).",0.16666666666666666,null,null,false,null,null,0,"",null,"Proaktives Change Management: Implementieren Sie ein strukturiertes Change-Management-Programm, das alle Ebenen des Unternehmens einbezieht und sicherstellt, dass Innovationen in der Lieferkette reibungslos eingeführt werden.\nUnterstützung auf allen Ebenen mobilisieren: Schaffen Sie ein starkes Engagement von Führungskräften und Mitarbeitenden durch klare Kommunikation und regelmäßige Schulungen, um die Akzeptanz und Unterstützung für Veränderungen zu fördern.\nDigitale Transformation fördern: Setzen Sie gezielt auf digitale Lösungen und Innovationen, um die Effizienz und Resilienz der Lieferkette zu steigern, und bieten Sie den Mitarbeitern die nötige Unterstützung, um den Wandel erfolgreich zu gestalten.",0.16666666666666666,null,null,false,null,null,0]
["F3.4","Wir reagieren dynamisch auf strukturelle Veränderungen und Marktverschiebungen und passen uns schnell an, um Wettbewerbsvorteile zu erzielen und eine unterbrechungsfreie Versorgung zu gewährleisten.",0.16666666666666666,null,null,false,null,null,0,"",null,"Dynamische Anpassung fördern: Entwickeln Sie agile Prozesse, die es Ihrem Unternehmen ermöglichen, schnell auf Marktveränderungen und strukturelle Veränderungen zu reagieren, um Wettbewerbsvorteile zu sichern.\nFrühzeitige Marktforschung nutzen: Verwenden Sie fortlaufende Marktanalysen, um Trends und Veränderungen frühzeitig zu erkennen und schnell Anpassungen in der Lieferkette vorzunehmen, um eine stabile Versorgung aufrechtzuerhalten.\nFlexibilität in der Lieferkette integrieren: Implementieren Sie flexible Lieferkettenstrukturen und -strategien, die es ermöglichen, rasch auf externe Veränderungen zu reagieren und Störungen zu minimieren.",0.16666666666666666,null,null,false,null,null,0]
["F3.5","Wir verfügen über Business Continuity Plans und/oder Playbooks, in denen Auslöser für die Umsetzung von Plänen identifiziert und Schritte beschrieben werden, die im Falle einer Unterbrechung zu ergreifen sind.",0.16666666666666666,null,null,false,null,null,0,"",null,"Business Continuity Pläne entwickeln: Erstellen Sie detaillierte Business Continuity Pläne (BCPs) und Playbooks, die klare Auslöser für die Umsetzung von Notfallmaßnahmen definieren und die Schritte zur Wiederherstellung der Geschäftskontinuität im Falle einer Unterbrechung beschreiben.\nKlar definierte Auslöser festlegen: Identifizieren Sie präzise Auslöser, wie Naturkatastrophen, Lieferkettenengpässe oder technologische Störungen, die den Beginn von Krisenmaßnahmen aktivieren, um sofortige Reaktionen zu ermöglichen.\nSchulungen und Simulationen durchführen: Schulen Sie regelmäßig alle relevanten Mitarbeiter und führen Sie Simulationen durch, um sicherzustellen, dass die Playbooks im Ernstfall effizient umgesetzt werden können und eine schnelle Wiederaufnahme des Betriebs gewährleistet ist.",0.16666666666666666,null,null,false,null,null,0]
["F3.6","Wir analysieren vergangene Störungen und deren Auswirkungen auf unser Unternehmen und setzen die gewonnenen Erkenntnisse in verbesserte Reaktionsstrategien um.",0.16666666666666666,null,null,false,null,null,0,"",null,"Rückblickende Analyse durchführen: Untersuchen Sie frühere Störungen und deren Auswirkungen auf Ihre Lieferkette und das Unternehmen, um Schwachstellen und potenzielle Risikofaktoren zu identifizieren.\nLernprozesse integrieren: Nutzen Sie die gewonnenen Erkenntnisse, um Ihre Reaktionsstrategien zu optimieren und die Resilienz der Lieferkette zu erhöhen, indem Sie bewährte Verfahren und verbesserte Prozesse umsetzen.\nKontinuierliche Verbesserung sicherstellen: Etablieren Sie einen kontinuierlichen Verbesserungsprozess, der es Ihnen ermöglicht, aus jeder Störung zu lernen und entsprechende Anpassungen vorzunehmen, um die Auswirkungen zukünftiger Störungen zu minimieren.",0.16666666666666666,null,null,false,null,null,0]
[null,null,null,null,null,null,null,6,{"$f":"SUM(I18:I23)","v":0},null,null,null,null,null,null,null,null,6,{"$f":"SUM(S18:S23)","v":0}]
[null,null,null,null,null,null,null,null,{"$f":"SUM(I8,I16,I24)/3","v":0},null,null,null,null,null,null,null,null,null,{"$f":"SUM(S8,S16,S24)/3","v":0}]
[]
["F1","Datenanalyse und Frühwarnsysteme",null,{"$f":"I8","v":0}]
["F2","Kundenorientierung und Produktentwicklung",null,{"$f":"I8","v":0}]
["F3","Innovative Lösungen und Technologien",null,{"$f":"I24","v":0}]
["C","Reifegrad Innovationsmanagement",null,{"$f":"SUM(D27:D29)/3","v":0}]

{"sheet":"Impressum","index":8,"n_rows":4,"n_cols":14,"rows_kept":4,"cut":false,"hidden":false,"merged":[[1,1,2,3],[1,13,2,15],[3,13,34,15],[3,1,34,3]]}
[null,null,"Supply Chain Resilience Quick Check Tool"]
[null,"Impressum",null,null,null,null,null,null,null,null,null,null,null,"Haftungsausschluss"]
[]
[null,"Angaben gemäß § 5 TMG:\nFachhochschule Münster (MSB)\nProjektteam „WiReSt“\nCorrensstraße 25\n48149 Münster\nDeutschland\n\nVertreten durch:\nJanis Purk\n\nKontakt:\nTelefon: +49 173 373 0620\nE-Mail: janis.purk@fh-muenster.de\nWebseite: https://www.fh-muenster.de/ipd/institut/ueberuns/IPD_Ueber-uns.php?pId=14644&orga=9&m_list_id=3&p_list_id=5&anzeige=vitae\n\nRegistereintrag:\nDie Fachhochschule Münster ist eine Körperschaft des öffentlichen Rechts.\nSie wird vertreten durch den Präsidenten Prof. Dr. Frank Dellmann.\nZuständige Aufsichtsbehörde: Ministerium für Kultur und Wissenschaft des Landes Nordrhein-Westfalen, Völklinger Straße 49, 40221 Düsseldorf.\n\nUmsatzsteuer-ID:\nUmsatzsteuer-Identifikationsnummer gemäß § 27a Umsatzsteuergesetz: DE 126118759\n\nVerantwortlich für den Inhalt nach § 55 Abs. 2 RStV:\nJanis Purk\nCorrensstraße 25, 48149 Münster, Deutschland\n\n",null,null,null,null,null,null,null,null,null,null,null,"Haftung für Inhalte:\nDie Inhalte unserer Seiten wurden mit größter Sorgfalt erstellt. Für die Richtigkeit, Vollständigkeit und Aktualität der Inhalte können wir jedoch keine Gewähr übernehmen. Als Diensteanbieter sind wir gemäß § 7 Abs.1 TMG für eigene Inhalte auf diesen Seiten nach den allgemeinen Gesetzen verantwortlich. Nach §§ 8 bis 10 TMG sind wir als Diensteanbieter jedoch nicht verpflichtet, übermittelte oder gespeicherte fremde Informationen zu überwachen oder nach Umständen zu forschen, die auf eine rechtswidrige Tätigkeit hinweisen.\n\nHaftung für Links:\nUnser Angebot enthält Links zu externen Webseiten Dritter, auf deren Inhalte wir keinen Einfluss haben. Deshalb können wir für diese fremden Inhalte auch keine Gewähr übernehmen. Für die Inhalte der verlinkten Seiten ist stets der jeweilige Anbieter oder Betreiber der Seiten verantwortlich.\n\nUrheberrecht:\nDie durch die Seitenbetreiber erstellten Inhalte und Werke auf diesen Seiten unterliegen dem deutschen Urheberrecht. Die Vervielfältigung, Bearbeitung, Verbreitung und jede Art der Verwertung außerhalb der Grenzen des Urheberrechtes bedürfen der schriftlichen Zustimmung des jeweiligen Autors bzw. Erstellers. Downloads und Kopien dieser Seite sind nur für den privaten, nicht kommerziellen Gebrauch gestattet.\n\nStreitbeilegung:\nDie Europäische Kommission stellt eine Plattform zur Online-Streitbeilegung (OS) bereit: https://ec.europa.eu/consumers/odr.\nWir sind nicht verpflichtet und nicht bereit, an einem Streitbeilegungsverfahren vor einer Verbraucherschlichtungsstelle teilzunehmen."]